Workbook

Sheet X5 CALCULATOR
E1: X5 Bestelformulier
E4: Rail + beslag
E5: …
E6: Beplating? | G6: Aantal sets X5
E7: … | G7: 1
E8: Hout of glas?
B9: =IF(AND(E5="Hawa",E9="Glas"),OPMERKINGEN!B33,"") ->  | E9: …
E10: Enkele of dubbele deur?
B11: =IF(AND(E17>2315,E23=75,E9="Hout",OR(E7="Enkele (<2315) X5",E7="Dubbel X5D")),OPMERKINGEN!B7,"") ->  | E11: …
B12: =IF(AND(E7="Enkele (<2315) X5",E17>2315,E13="Pocket"),OPMERKINGEN!B2,IF(AND(E7="Dubbel X5D",E17>3015,E13="Pocket"),OPMERKINGEN!B3,IF(AND(E7="Enkele (<2315) X5",E17>2415,E13="Wall"),OPMERKINGEN!B4,""))) ->  | E12: Pocket of WALL?
B13: =IF(E19>1230,OPMERKINGEN!B6,"") ->  | E13: …
E14: Afwerking?
B15: =IF(AND(E9="Glas",E23="50",E19>1030),OPMERKINGEN!B9,IF(AND(E9="Hout",E23="50"),OPMERKINGEN!B9,"")) ->  | E15: …
E16: Hoogte deurblad? (mm)
B17: =IF(AND(E19>1030,E7="Enkele (<2315) X5"),OPMERKINGEN!B29,"") ->  | F17: =IF(E17="","",IF(E17<1000,">1000 mm","")) -> 
B18: =IF(AND(E7="Enkele (<2315) X5",E23="75",E17>2315),OPMERKINGEN!B12,IF(AND(E7="Enkele (<2315) X5",E23="75",E17>2315,E15="XINNIX"),OPMERKINGEN!B13,IF(AND(E7="Dubbel X5D",E23="75",E17>3015,E15="XINNIX",AND(E7="Dubbel X5",E23="100",E17>3015,E15="XINNIX",AND(OR(E7="Dubbel X5D32",E7="Dubbel X5D50"),E23="75",E17>3015,E15="XINNIX"))),OPMERKINGEN!B14,IF(AND(E7="Enkele (<2315) X5",E23="100",E17>3015,E15="PURE",AND(E7="Dubbel X5D",E23="75",E17>3015,E15="PURE",AND(E7="Dubbel X5D",E23="100",E17>3015,E15="PURE"))),OPMERKINGEN!B15,IF(AND(E7="Enkele (<2315) X5",E23="75",E17>2315,E9="Glas",AND(E7="Dubbel X5D",E23="50",E17>2315,E9="Glas")),OPMERKINGEN!B16,IF(AND(OR(E7="Dubbel X5D32",E7="Dubbel X5D50"),E23="50",E17>2715,E9="Glas"),OPMERKINGEN!B17,"")))))) ->  | E18: Breedte deurblad? (mm)
B19: =IF(AND(E5="Xinnix Double Soft Slide",E23=50),OPMERKINGEN!B34,"") ->  | F19: =IF(E19="","",IF(AND(E5="Xinnix",E19<530),"≥ 530 mm",IF(AND(E5="Hawa",E19<800),"≥ 800 mm",IF(AND(E5="Xinnix Double Soft Slide",E19<680),"≥ 680 mm","")))) -> 
B20: =IF(AND(E23=50,E9="Hout"),OPMERKINGEN!B18,"") ->  | E20: Dikte deurblad? | G20: Referentie
B21: =IF(E23=50,OPMERKINGEN!B28,"") ->  | E21: … | F21: =IF(AND(E23=75,E21>40,E9="Hout"),OPMERKINGEN!B25,"") -> 
B22: =IF(AND(E9="Glas",OR(E21=35,E21=40,E21=43,E21=45,E21=50,E21=55,E21=60)),OPMERKINGEN!B23,"") ->  | E22: Metalstud?
B23: =IF(E17>3515,OPMERKINGEN!B20,"") ->  | E23: …
B24: =IF(E19>3030,OPMERKINGEN!B21,"") ->  | E24: Afgewerkte muurdikte | G24: Opmerkingen
B25: =IF(AND(E9="Glas",E23=50,E7="Enkel (<2315) X5"),OPMERKINGEN!B24,"") ->  | E25: =IF(E13="Wall",IF(E7="Enkele (<2315) X5",E23+12.5,IF(E7="Dubbel X5D",E23+25,IF(E7="Dubbel X5D32",E23+30.5,IF(E7="Dubbel X5D50",E23+50,"")))),IF(E7="Enkele (<2315) X5",E23+25,IF(E7="Dubbel X5D",E23+50,IF(E7="Dubbel X5D32",E23+64,IF(E7="Dubbel X5D50",E23+100,""))))) -> 
B26: =IF(AND(E11="Enkele",E27="Symmetrie"),"Symmetrie is enkel mogelijk bij een dubbele deur",IF(AND(E15="PURE",E27="Symmetrie"),"Symmetrie is enkel mogelijk met Xinnix afwerking",IF(AND(E7="Enkele (<2315) X5",E27="Symmetrie"),"Symmetrie is enkel mogelijk bij dubbele beplating",""))) ->  | E26: Parallel(1) of symmetrie(2) systeem
B27: =IF(AND(E5="Hawa",E11="Dubbele"),OPMERKINGEN!B32,"") ->  | E27: Nee
B30: Product | C30: code | E30: Omschrijving | F30: Aantal boxen voor 1 set | G30: Totaal aantal boxen | H30: Prijs | I30: Totaal
B32: Staanders | C32: =IF(E17="","",IF(E17>=3515,"",CONCATENATE(IF(E7="Enkele (<2315) X5","X5",IF(E7="Dubbel X5D","X5D",IF(E7="Dubbel X5D32","X5D32",IF(E7="Dubbel X5D50","X5D50","")))),"-",IF(E13="Wall","WALL",""),IF(E13="Wall","",IF(E17<=1972,1972,IF(E17<=2015,2015,IF(E17<=2040,2040,IF(E17<=2115,2115,IF(E17<=2315,2315,IF(E17<=2415,2415,IF(E17<=2715,2715,IF(E17<=3015,3015,IF(E17<=3515,3515,"")))))))))),IF(E13="Pocket","",IF(AND(E17<=2115,E7="Enkele (<2315) X5"),2115,IF(E17<=2415,2415,IF(E17<=2715,2715,IF(E17<=3015,3015,IF(E17<=3515,3515,""))))))))) ->  | E32: =IF(C32="","",VLOOKUP(C32,STAANDERS!C2:G59,4,FALSE)) ->  | F32: =IF(C32="","",IF(E11="Enkele",1,2)) ->  | G32: =IF(F32="","",G7*F32) ->  | H32: =IF(C32="","",VLOOKUP(C32,STAANDERS!C2:G59,5,FALSE)) ->  | I32: =IF(C32="","",H32*G32) -> 
B33: Extra middenstaanders | C33: =IF(E19="…","",IF(E19<1231,"",CONCATENATE("X5D/XM",IF(E17<=2115,2115,IF(E17<=2315,2315,IF(E17<=2715,2715,IF(E17<=3015,3015,IF(E17<=3515,3515,)))))))) ->  | E33: =IF(C33="","",VLOOKUP(C33,MIDDENSTAANDERS!B2:F6,3,FALSE)) ->  | F33: =IF(C33="","",IF(AND(E19<=1830,E11="Enkele"),1, IF(AND(E19<=1830,E11="Dubbele"),2, IF(AND(E19<=2430,E11="Enkele"),2, IF(AND(E19<=2430,E11="Dubbele"),4, IF(AND(E19<=3030,E11="Enkele"),3, IF(AND(E19<=3030,E11="Dubbele"),6, ""))))))) ->  | G33: =IF(F33="","",G7*F33) ->  | H33: =IF(C33="","",VLOOKUP(C33,MIDDENSTAANDERS!B2:F6,4,FALSE)) ->  | I33: =IF(C33="","",H33*F33) -> 
B34: Rail + garnituur | C34: =IF(E19="","",CONCATENATE(IF(AND(E9="Glas",E19>1530),"","X5"),IF(AND(E9="Glas",E19>1530),"","-"),IF(AND(E5="Hawa",E19<1531,E9="Hout"), "H100-",""),IF(E5="Xinnix Double Soft Slide","DS-",""),IF(OR(E19=830,E19=930),0,""),IF(E19=830,830,IF(E19=930,930,IF(E19<=1030,1030,IF(E19<=1230,1230,IF(E19<=1530,1530,IF(E19<=2030,2030,IF(AND(E9="Hout",E19<=2430),2430,IF(AND(E9="Hout",E19<=3030),3030,IF(AND(E9="Glas",E19>1530),"Op aanvraag, mail sales@xinnix.eu",""))))))))),IF(AND(E9="Glas",E19>1530),"",""),IF(AND(E9="Glas",E19>1530),"","."),IF(AND(E9="Glas",E19>1530),"",E23),IF(AND(E9="Glas",E19<2031),"GLC",""))) ->  | E34: =IF(OR(C34="",C34="Op aanvraag, mail sales@xinnix.eu"),"",VLOOKUP(C34,RAIL!B2:E50,2,FALSE)) ->  | F34: =IF(OR(C34="",C34="Op aanvraag, mail sales@xinnix.eu"),"",IF(E11="Enkele",1,2)) ->  | G34: =IF(F34="","",G7*F34) ->  | H34: =IF(OR(C34="",C34="Op aanvraag, mail sales@xinnix.eu"),"",VLOOKUP(C34,RAIL!B2:E50,4,FALSE)) ->  | I34: =IF(OR(C34="",C34="Op aanvraag, mail sales@xinnix.eu"),"",H34*G34) -> 
B37: Afwerkset | C37: =IF(OR(E17="",AND(E5="Hawa",E11="Dubbele")),"",CONCATENATE(IF(E15="PURE","X5",IF(OR(E7="Enkele (<2315) X5",AND(E7="Dubbel X5D",E23=50,E9="Glas")),"X5",IF(E7="Dubbel X5D","X5D",IF(E7="Dubbel X5D32","X5D32",IF(E7="Dubbel X5D50","X5D50",""))))),"-",IF(AND(E5="Hawa",E19<1531,E9="Hout",E15="PURE"), "H100-",""),IF(E15="XINNIX","XINNIX","PURE"),IF(AND(E9="Glas",E11="Enkele"),"GL",""),IF(AND(E11="Enkele",E17<=2315),"-23.",IF(AND(E11="Enkele",E17<=2715),"-27.",IF(AND(E11="Enkele",E17<=3015),"-30.",IF(AND(E11="Enkele",E17<=3515),"-35.","")))),IF(E11="Dubbele","/D",""),IF(AND(E11="Enkele",E13="Pocket"),IF(E25<101,100, IF(E25<115,114, IF(E25<126,125, IF(E25<140,139, IF(E25<151,150, IF(E25<165,164,IF(E25<176,175, IF(E25<201,200,"")))))))),""),IF(AND(E11="Enkele",E13="Wall",E7="Dubbel X5D50"),IF(E25<101,150,IF(E25<126,175,IF(E25<151,200,""))),""),IF(AND(E11="Enkele",E13="Wall",OR(E7="Enkele (<2315)X5",E7="Dubbel X5D",E7="Dubbel X5D32",)), IF(E25<76,100, IF(E25<81,114, IF(E25<88,100, IF(E25<101,125, IF(E25<106,139, IF(E25<113,125, IF(E25<126,150, IF(E25<131,164,IF(E25<137,175, IF(E25<162,200,"")))))))))), ""),IF(AND(E11="Dubbele",E19<2400,E15="XINNIX"),".1",IF(AND(E11="Dubbele",E19<=4000,E15="XINNIX"),".2","")),IF(AND(E11="Enkele",E19<=1230,E15="XINNIX"),"/1",IF(AND(E11="Enkele",E19<=2030,E15="XINNIX"),"/2",IF(AND(E11="Enkele",E19<=3030,E15="XINNIX"),"/3",IF(AND(E5="Hawa",E21=35),"/40",IF(AND(E5="Hawa",E21=40),"/40",IF(AND(E5="Hawa",E21=43),"/40",IF(AND(E5="Hawa",E21=45),"/50",IF(AND(E5="Hawa",E21=50),"/50",IF(AND(E5="Hawa",E21=60),"/60",""))))))))))) ->  | E37: =IF(C37="","",VLOOKUP(C37,AFWERKING!B1:D274,2,FALSE)) ->  | F37: =IF(C37="","",1) ->  | G37: =IF(F37="","",G7*F37) ->  | H37: =IF(C37="","",VLOOKUP(C37,AFWERKING!B1:D274,3,FALSE)) ->  | I37: =IF(C37="","",H37*G37) -> 
B39: Extra | C39: =IF(OR(E27="Parallel",E27="Symmetrie"),"Parallel/symmetrie systeem op aanvraag, sales@xinnix.eu.","") ->  | E39: =IF(OR(C39="Enkel mogelijk bij een dubbele deur",C39="Enkel mogelijk bij Xinnix afwerking",C39="Parallel/symmetrie systeem op aanvraag, sales@xinnix.eu.",C39=""),"",VLOOKUP(C39,RAIL!I2:L5,2,FALSE)) ->  | F39: =IF(E39="","",1) ->  | G39: =IF(F39="","",F39*G5) ->  | H39: =IF(E39="","",VLOOKUP(C39,RAIL!I2:L5,3,FALSE)) ->  | I39: =IF(H39="","",H39*G39) -> 
B41: Schuifdeurgreep | C41: Kies hier uw greep | E41: =IF(OR(C41="",C41="Kies hier uw greep"),"",VLOOKUP(C41,GREPEN!B2:D46,2,FALSE)) ->  | F41: =IF(C41="","",1) -> 1 | G41: Vul hier zelf een aantal in. | H41: =IF(OR(C41="",C41="Kies hier uw greep"),"",VLOOKUP(C41,GREPEN!B2:D46,3,FALSE)) ->  | I41: =IF(OR(C41="",C41="Kies hier uw greep"),"",H41*G41) -> 
H43: Totaal
H44: =SUM(I32:I41) -> 0
B46: Prijzen uit prijslijst 2024
B47: Onder voorbehoud van systeem en berekeningsfouten

Sheet DEURBLAD
B4: HOUT - AFWERKING XINNIX | G4: HOUT - AFWERKING XINNIX | L4: HOUT - AFWERKING XINNIX
B5: DEURBLAD | D5: HOOGTE | E5: BREEDTE | G5: DEURBLAD | I5: HOOGTE | J5: BREEDTE | L5: DEURBLAD | N5: HOOGTE | O5: BREEDTE
D6: 2115 | E6: 930 | I6: =I8-90 -> 2010 | J6: =(J8-10)/2 -> 445 | N6: =N10+5 -> 2115 | O6: =O10+30 -> 930
B7: CONSTRUCTIE OPENING | D7: HOOGTE | E7: BREEDTE | G7: CONSTRUCTIE OPENING | I7: HOOGTE | J7: BREEDTE | L7: CONSTRUCTIE OPENING | N7: HOOGTE | O7: BREEDTE
D8: =D6+90 -> 2205 | E8: =(E6*2)+10 -> 1870 | I8: 2100 | J8: 900 | N8: =N10+95 -> 2205 | O8: =((O10+30)*2)+10 -> 1870
B9: VRIJE DOORGANG | D9: HOOGTE | E9: BREEDTE | G9: VRIJE DOORGANG | I9: HOOGTE | J9: BREEDTE | L9: VRIJE DOORGANG | N9: HOOGTE | O9: BREEDTE
D10: =D6+8-(95-82) -> 2110 | E10: =E6-30 -> 900 | I10: =I8-95 -> 2005 | J10: =(J8-10)/2-30 -> 415 | N10: 2110 | O10: 900
B12: HOUT - AFWERKING PURE | G12: HOUT - AFWERKING PURE | L12: HOUT - AFWERKING PURE
B13: DEURBLAD | D13: HOOGTE | E13: BREEDTE | G13: DEURBLAD | I13: HOOGTE | J13: BREEDTE | L13: DEURBLAD | N13: HOOGTE | O13: BREEDTE
D14: 3286 | E14: 960 | I14: =I16-8-4-58 -> 2565 | J14: =(J16-10)/2 -> 930 | N14: =N18-8-4 -> 2588 | O14: =O18+30 -> 1680
B15: CONSTRUCTIE OPENING | D15: HOOGTE | E15: BREEDTE | G15: CONSTRUCTIE OPENING | I15: HOOGTE | J15: BREEDTE | L15: CONSTRUCTIE OPENING | N15: HOOGTE | O15: BREEDTE
D16: =D14+70 -> 3356 | E16: =(E14*2)+10 -> 1930 | I16: 2635 | J16: 1870 | N16: =N18+58 -> 2658 | O16: =((O18+30)*2)+10 -> 3370
B17: VRIJE DOORGANG | D17: HOOGTE | E17: BREEDTE | G17: VRIJE DOORGANG | I17: HOOGTE | J17: BREEDTE | L17: VRIJE DOORGANG | N17: HOOGTE | O17: BREEDTE
D18: =D14+8+4 -> 3298 | E18: =E14-30 -> 930 | I18: =I16-58 -> 2577 | J18: =(J16-10)/2-30 -> 900 | N18: 2600 | O18: 1650

Sheet TECHNISCHE INFORMATIE
B2: Beplating | J2: Standaard of wall | R2: Afwerking | V2: Types
B4: X5 | J4: Pocket | R4: Xinnix | V4: X5
B11: X5D | V11: X5 XXL
J15: WALL | R15: Pure
V17: X5 dubbel
B18: X5D32
V24: X5 synchroon (op aanvraag, sales@xinnix.eu)
B28: X5D50 | J28: Hawa + Xinnix Double Soft Slide
V31: X5 parallel (op aanvraag, sales@xinnix.eu)
V38: X5 angle
J42: A | L42: B
J43: Breedte deur (mm) | L43: Hoogte deur (mm)
J45: =IF(L48>M48,"Uitneembare rail","Niet uitneembare rail") -> Niet uitneembare rail
J47: A | K47: B | L47: C
J48: =(J44*J44)/1000000 -> 0 | K48: =(L44*L44)/1000000 -> 0 | L48: =SQRT(J48+K48) -> 0 | M48: =(J44*2)/1000 -> 0

Sheet MAATWERK (hidden)
B1: X5D-20.15B100 | C1: XINNIX X5D Schuifdeursysteem B 1500 H 2000 Pr 100 Md 150 | D1: 758.54
B2: X5D-20.16B100 | C2: XINNIX XD5 Schuifdeursysteem B 1600 H 2000 Pr 100 Md 150 | D2: 758.54
B3: X5D-20.17B100 | C3: XINNIX X5D Schuifdeursysteem B 1700 H 2000 Pr 100 Md 150 | D3: 758.54
B4: X5D-20.18B100 | C4: XINNIX X5D Schuifdeursysteem B 1800 H 2000 Pr 100 Md 150 | D4: 758.54
B5: X5D-20.19B100 | C5: XINNIX X5D Schuifdeursysteem B 1900 H 2000 Pr 100 Md 150 | D5: 933.59
B6: X5D-20.20B100 | C6: XINNIX X5D Schuifdeursysteem B 2000 H 2000 Pr 100 Md 150 | D6: 933.59
B7: X5D-20.21B100 | C7: XINNIX X5D Schuifdeursysteem B 2100 H 2000 Pr 100 Md 150 | D7: 1060.9
B8: X5D-20.22B100 | C8: XINNIX X5D Schuifdeursysteem B 2200 H 2000 Pr 100 Md 150 | D8: 1060.9
B9: X5D-20.23B100 | C9: XINNIX X5D Schuifdeursysteem B 2300 H 2000 Pr 100 Md 150 | D9: 1060.9
B10: X5D-20.24B100 | C10: XINNIX X5D Schuifdeursysteem B 2400 H 2000 Pr 100 Md 150 | D10: 1060.9
B11: X5D-20.25B100 | C11: XINNIX X5D Schuifdeursysteem B 2500 H 2000 Pr 100 Md 150 | D11: 1363.26
B12: X5D-20.26B100 | C12: XINNIX X5D Schuifdeursysteem B 2600 H 2000 Pr 100 Md 150 | D12: 1363.26
B13: X5D-20.27B100 | C13: XINNIX X5D Schuifdeursysteem B 2700 H 2000 Pr 100 Md 150 | D13: 1363.26
B14: X5D-20.28B100 | C14: XINNIX X5D Schuifdeursysteem B 2800 H 2000 Pr 100 Md 150 | D14: 1363.26
B15: X5D-20.29B100 | C15: XINNIX X5D Schuifdeursysteem B 2900 H 2000 Pr 100 Md 150 | D15: 1363.26
B16: X5D-20.30B100 | C16: XINNIX X5D Schuifdeursysteem B 3000 H 2000 Pr 100 Md 150 | D16: 1363.26
B17: X5D-21.15B100 | C17: XINNIX X5D Schuifdeursysteem B 1500 H 2100 Pr 100 Md 150 | D17: 758.54
B18: X5D-21.16B100 | C18: XINNIX X5D Schuifdeursysteem B 1600 H 2100 Pr 100 Md 150 | D18: 758.54
B19: X5D-21.17B100 | C19: XINNIX X5D Schuifdeursysteem B 1700 H 2100 Pr 100 Md 150 | D19: 758.54
B20: X5D-21.18B100 | C20: XINNIX X5D Schuifdeursysteem B 1800 H 2100 Pr 100 Md 150 | D20: 758.54
B21: X5D-21.19B100 | C21: XINNIX X5D Schuifdeursysteem B 1900 H 2100 Pr 100 Md 150 | D21: 933.59
B22: X5D-21.20B100 | C22: XINNIX X5D Schuifdeursysteem B 2000 H 2100 Pr 100 Md 150 | D22: 933.59
B23: X5D-21.21B100 | C23: XINNIX X5D Schuifdeursysteem B 2100 H 2100 Pr 100 Md 150 | D23: 1060.9
B24: X5D-21.22B100 | C24: XINNIX X5D Schuifdeursysteem B 2200 H 2100 Pr 100 Md 150 | D24: 1060.9
B25: X5D-21.23B100 | C25: XINNIX X5D Schuifdeursysteem B 2300 H 2100 Pr 100 Md 150 | D25: 1060.9
B26: X5D-21.24B100 | C26: XINNIX X5D Schuifdeursysteem B 2400 H 2100 Pr 100 Md 150 | D26: 1060.9
B27: X5D-21.25B100 | C27: XINNIX X5D Schuifdeursysteem B 2500 H 2100 Pr 100 Md 150 | D27: 1363.26
B28: X5D-21.26B100 | C28: XINNIX X5D Schuifdeursysteem B 2600 H 2100 Pr 100 Md 150 | D28: 1363.26
B29: X5D-21.27B100 | C29: XINNIX X5D Schuifdeursysteem B 2700 H 2100 Pr 100 Md 150 | D29: 1363.26
B30: X5D-21.28B100 | C30: XINNIX X5D Schuifdeursysteem B 2800 H 2100 Pr 100 Md 150 | D30: 1363.26
B31: X5D-21.29B100 | C31: XINNIX X5D Schuifdeursysteem B 2900 H 2100 Pr 100 Md 150 | D31: 1363.26
B32: X5D-21.30B100 | C32: XINNIX X5D Schuifdeursysteem B 3000 H 2100 Pr 100 Md 150 | D32: 1363.26
B33: X5D-23.15B100 | C33: XINNIX X5D Schuifdeursysteem B 1500 H 2300 Pr 100 Md 150 | D33: 779.76
B34: X5D-23.16B100 | C34: XINNIX X5D Schuifdeursysteem B 1600 H 2300 Pr 100 Md 150 | D34: 779.76
B35: X5D-23.17B100 | C35: XINNIX X5D Schuifdeursysteem B 1700 H 2300 Pr 100 Md 150 | D35: 779.76
B36: X5D-23.18B100 | C36: XINNIX X5D Schuifdeursysteem B 1800 H 2300 Pr 100 Md 150 | D36: 779.76
B37: X5D-23.19B100 | C37: XINNIX X5D Schuifdeursysteem B 1900 H 2300 Pr 100 Md 150 | D37: 965.42
B38: X5D-23.20B100 | C38: XINNIX X5D Schuifdeursysteem B 2000 H 2300 Pr 100 Md 150 | D38: 965.42
B39: X5D-23.21B100 | C39: XINNIX X5D Schuifdeursysteem B 2100 H 2300 Pr 100 Md 150 | D39: 1124.55
B40: X5D-23.22B100 | C40: XINNIX X5D Schuifdeursysteem B 2200 H 2300 Pr 100 Md 150 | D40: 1124.55
B41: X5D-23.23B100 | C41: XINNIX X5D Schuifdeursysteem B 2300 H 2300 Pr 100 Md 150 | D41: 1124.55
B42: X5D-23.24B100 | C42: XINNIX X5D Schuifdeursysteem B 2400 H 2300 Pr 100 Md 150 | D42: 1124.55
B43: X5D-23.25B100 | C43: XINNIX X5D Schuifdeursysteem B 2500 H 2300 Pr 100 Md 150 | D43: 1437.52
B44: X5D-23.26B100 | C44: XINNIX X5D Schuifdeursysteem B 2600 H 2300 Pr 100 Md 150 | D44: 1437.52
B45: X5D-23.27B100 | C45: XINNIX X5D Schuifdeursysteem B 2700 H 2300 Pr 100 Md 150 | D45: 1437.52
B46: X5D-23.28B100 | C46: XINNIX X5D Schuifdeursysteem B 2800 H 2300 Pr 100 Md 150 | D46: 1437.52
B47: X5D-23.29B100 | C47: XINNIX X5D Schuifdeursysteem B 2900 H 2300 Pr 100 Md 150 | D47: 1437.52
B48: X5D-23.30B100 | C48: XINNIX X5D Schuifdeursysteem B 3000 H 2300 Pr 100 Md 150 | D48: 1437.52
B49: X5D-27.15B100 | C49: XINNIX X5D Schuifdeursysteem B 1500 H 2700 Pr 100 Md 150 | D49: 960.11
B50: X5D-27.16B100 | C50: XINNIX X5D Schuifdeursysteem B 1600 H 2700 Pr 100 Md 150 | D50: 960.11
B51: X5D-27.17B100 | C51: XINNIX X5D Schuifdeursysteem B 1700 H 2700 Pr 100 Md 150 | D51: 960.11
B52: X5D-27.18B100 | C52: XINNIX X5D Schuifdeursysteem B 1800 H 2700 Pr 100 Md 150 | D52: 960.11
B53: X5D-27.19B100 | C53: XINNIX X5D Schuifdeursysteem B 1900 H 2700 Pr 100 Md 150 | D53: 1336.73
B54: X5D-27.20B100 | C54: XINNIX X5D Schuifdeursysteem B 2000 H 2700 Pr 100 Md 150 | D54: 1336.73
B55: X5D-27.21B100 | C55: XINNIX X5D Schuifdeursysteem B 2100 H 2700 Pr 100 Md 150 | D55: 1336.73
B56: X5D-27.22B100 | C56: XINNIX X5D Schuifdeursysteem B 2200 H 2700 Pr 100 Md 150 | D56: 1336.73
B57: X5D-27.23B100 | C57: XINNIX X5D Schuifdeursysteem B 2300 H 2700 Pr 100 Md 150 | D57: 1336.73
B58: X5D-27.24B100 | C58: XINNIX X5D Schuifdeursysteem B 2400 H 2700 Pr 100 Md 150 | D58: 1336.73
B59: X5D-27.25B100 | C59: XINNIX X5D Schuifdeursysteem B 2500 H 2700 Pr 100 Md 150 | D59: 1713.35
B60: X5D-27.26B100 | C60: XINNIX X5D Schuifdeursysteem B 2600 H 2700 Pr 100 Md 150 | D60: 1713.35
B61: X5D-27.27B100 | C61: XINNIX X5D Schuifdeursysteem B 2700 H 2700 Pr 100 Md 150 | D61: 1713.35
B62: X5D-27.28B100 | C62: XINNIX X5D Schuifdeursysteem B 2800 H 2700 Pr 100 Md 150 | D62: 1713.35
B63: X5D-27.29B100 | C63: XINNIX X5D Schuifdeursysteem B 2900 H 2700 Pr 100 Md 150 | D63: 1713.35
B64: X5D-27.30B100 | C64: XINNIX X5D Schuifdeursysteem B 3000 H 2700 Pr 100 Md 150 | D64: 1713.35
B65: X5D-30.15B100 | C65: XINNIX X5D Schuifdeursysteem B 1500 H 3000 Pr 100 Md 150 | D65: 997.25
B66: X5D-30.16B100 | C66: XINNIX X5D Schuifdeursysteem B 1600 H 3000 Pr 100 Md 150 | D66: 997.25
B67: X5D-30.17B100 | C67: XINNIX X5D Schuifdeursysteem B 1700 H 3000 Pr 100 Md 150 | D67: 997.25
B68: X5D-30.18B100 | C68: XINNIX X5D Schuifdeursysteem B 1800 H 3000 Pr 100 Md 150 | D68: 997.25
B69: X5D-30.19B100 | C69: XINNIX X5D Schuifdeursysteem B 1900 H 3000 Pr 100 Md 150 | D69: 1262.47
B70: X5D-30.20B100 | C70: XINNIX X5D Schuifdeursysteem B 2000 H 3000 Pr 100 Md 150 | D70: 1262.47
B71: X5D-30.21B100 | C71: XINNIX X5D Schuifdeursysteem B 2100 H 3000 Pr 100 Md 150 | D71: 1389.78
B72: X5D-30.22B100 | C72: XINNIX X5D Schuifdeursysteem B 2200 H 3000 Pr 100 Md 150 | D72: 1389.78
B73: X5D-30.23B100 | C73: XINNIX X5D Schuifdeursysteem B 2300 H 3000 Pr 100 Md 150 | D73: 1389.78
B74: X5D-30.24B100 | C74: XINNIX X5D Schuifdeursysteem B 2400 H 3000 Pr 100 Md 150 | D74: 1389.78
B75: X5D-30.25B100 | C75: XINNIX X5D Schuifdeursysteem B 2500 H 3000 Pr 100 Md 150 | D75: 1782.31
B76: X5D-30.26B100 | C76: XINNIX X5D Schuifdeursysteem B 2600 H 3000 Pr 100 Md 150 | D76: 1782.31
B77: X5D-30.27B100 | C77: XINNIX X5D Schuifdeursysteem B 2700 H 3000 Pr 100 Md 150 | D77: 1782.31
B78: X5D-30.28B100 | C78: XINNIX X5D Schuifdeursysteem B 2800 H 3000 Pr 100 Md 150 | D78: 1782.31
B79: X5D-30.29B100 | C79: XINNIX X5D Schuifdeursysteem B 2900 H 3000 Pr 100 Md 150 | D79: 1782.31
B80: X5D-30.30B100 | C80: XINNIX X5D Schuifdeursysteem B 3000 H 3000 Pr 100 Md 150 | D80: 1782.31
B81: X5D32-20.15B100 | C81: XINNIX X5D Schuifdeursysteem B 1500 H 2000 Pr 100 Md 150 | D81: 790.37
B82: X5D32-20.16B100 | C82: XINNIX XD5 Schuifdeursysteem B 1600 H 2000 Pr 100 Md 150 | D82: 790.37
B83: X5D32-20.17B100 | C83: XINNIX X5D Schuifdeursysteem B 1700 H 2000 Pr 100 Md 150 | D83: 790.37
B84: X5D32-20.18B100 | C84: XINNIX X5D Schuifdeursysteem B 1800 H 2000 Pr 100 Md 150 | D84: 790.37
B85: X5D32-20.19B100 | C85: XINNIX X5D Schuifdeursysteem B 1900 H 2000 Pr 100 Md 150 | D85: 976.03
B86: X5D32-20.20B100 | C86: XINNIX X5D Schuifdeursysteem B 2000 H 2000 Pr 100 Md 150 | D86: 976.03
B87: X5D32-20.21B100 | C87: XINNIX X5D Schuifdeursysteem B 2100 H 2000 Pr 100 Md 150 | D87: 1103.34
B88: X5D32-20.22B100 | C88: XINNIX X5D Schuifdeursysteem B 2200 H 2000 Pr 100 Md 150 | D88: 1103.34
B89: X5D32-20.23B100 | C89: XINNIX X5D Schuifdeursysteem B 2300 H 2000 Pr 100 Md 150 | D89: 1103.34
B90: X5D32-20.24B100 | C90: XINNIX X5D Schuifdeursysteem B 2400 H 2000 Pr 100 Md 150 | D90: 1103.34
B91: X5D32-20.25B100 | C91: XINNIX X5D Schuifdeursysteem B 2500 H 2000 Pr 100 Md 150 | D91: 1416.3
B92: X5D32-20.26B100 | C92: XINNIX X5D Schuifdeursysteem B 2600 H 2000 Pr 100 Md 150 | D92: 1416.3
B93: X5D32-20.27B100 | C93: XINNIX X5D Schuifdeursysteem B 2700 H 2000 Pr 100 Md 150 | D93: 1416.3
B94: X5D32-20.28B100 | C94: XINNIX X5D Schuifdeursysteem B 2800 H 2000 Pr 100 Md 150 | D94: 1416.3
B95: X5D32-20.29B100 | C95: XINNIX X5D Schuifdeursysteem B 2900 H 2000 Pr 100 Md 150 | D95: 1416.3
B96: X5D32-20.30B100 | C96: XINNIX X5D Schuifdeursysteem B 3000 H 2000 Pr 100 Md 150 | D96: 1416.3
B97: X5D32-21.15B100 | C97: XINNIX X5D32 Schuifdeursysteem B 1500 H 2100 Pr 100 Md 150 | D97: 790.37
B98: X5D32-21.16B100 | C98: XINNIX X5D32 Schuifdeursysteem B 1600 H 2100 Pr 100 Md 150 | D98: 790.37
B99: X5D32-21.17B100 | C99: XINNIX X5D32 Schuifdeursysteem B 1700 H 2100 Pr 100 Md 150 | D99: 790.37
B100: X5D32-21.18B100 | C100: XINNIX X5D32 Schuifdeursysteem B 1800 H 2100 Pr 100 Md 150 | D100: 790.37
B101: X5D32-21.19B100 | C101: XINNIX X5D32 Schuifdeursysteem B 1900 H 2100 Pr 100 Md 150 | D101: 976.03
B102: X5D32-21.20B100 | C102: XINNIX X5D32 Schuifdeursysteem B 2000 H 2100 Pr 100 Md 150 | D102: 976.03
B103: X5D32-21.21B100 | C103: XINNIX X5D32 Schuifdeursysteem B 2100 H 2100 Pr 100 Md 150 | D103: 1103.34
B104: X5D32-21.22B100 | C104: XINNIX X5D32 Schuifdeursysteem B 2200 H 2100 Pr 100 Md 150 | D104: 1103.34
B105: X5D32-21.23B100 | C105: XINNIX X5D32 Schuifdeursysteem B 2300 H 2100 Pr 100 Md 150 | D105: 1103.34
B106: X5D32-21.24B100 | C106: XINNIX X5D32 Schuifdeursysteem B 2400 H 2100 Pr 100 Md 150 | D106: 1103.34
B107: X5D32-21.25B100 | C107: XINNIX X5D32 Schuifdeursysteem B 2500 H 2100 Pr 100 Md 150 | D107: 1416.3
B108: X5D32-21.26B100 | C108: XINNIX X5D32 Schuifdeursysteem B 2600 H 2100 Pr 100 Md 150 | D108: 1416.3
B109: X5D32-21.27B100 | C109: XINNIX X5D32 Schuifdeursysteem B 2700 H 2100 Pr 100 Md 150 | D109: 1416.3
B110: X5D32-21.28B100 | C110: XINNIX X5D32 Schuifdeursysteem B 2800 H 2100 Pr 100 Md 150 | D110: 1416.3
B111: X5D32-21.29B100 | C111: XINNIX X5D32 Schuifdeursysteem B 2900 H 2100 Pr 100 Md 150 | D111: 1416.3
B112: X5D32-21.30B100 | C112: XINNIX X5D32 Schuifdeursysteem B 3000 H 2100 Pr 100 Md 150 | D112: 1416.3
B113: X5D32-23.15B100 | C113: XINNIX X5D32 Schuifdeursysteem B 1500 H 2300 Pr 100 Md 150 | D113: 822.19
B114: X5D32-23.16B100 | C114: XINNIX X5D32 Schuifdeursysteem B 1600 H 2300 Pr 100 Md 150 | D114: 822.19
B115: X5D32-23.17B100 | C115: XINNIX X5D32 Schuifdeursysteem B 1700 H 2300 Pr 100 Md 150 | D115: 822.19
B116: X5D32-23.18B100 | C116: XINNIX X5D32 Schuifdeursysteem B 1800 H 2300 Pr 100 Md 150 | D116: 822.19
B117: X5D32-23.19B100 | C117: XINNIX X5D32 Schuifdeursysteem B 1900 H 2300 Pr 100 Md 150 | D117: 1007.86
B118: X5D32-23.20B100 | C118: XINNIX X5D32 Schuifdeursysteem B 2000 H 2300 Pr 100 Md 150 | D118: 1007.86
B119: X5D32-23.21B100 | C119: XINNIX X5D32 Schuifdeursysteem B 2100 H 2300 Pr 100 Md 150 | D119: 1166.99
B120: X5D32-23.22B100 | C120: XINNIX X5D32 Schuifdeursysteem B 2200 H 2300 Pr 100 Md 150 | D120: 1166.99
B121: X5D32-23.23B100 | C121: XINNIX X5D32 Schuifdeursysteem B 2300 H 2300 Pr 100 Md 150 | D121: 1166.99
B122: X5D32-23.24B100 | C122: XINNIX X5D32 Schuifdeursysteem B 2400 H 2300 Pr 100 Md 150 | D122: 1166.99
B123: X5D32-23.25B100 | C123: XINNIX X5D32 Schuifdeursysteem B 2500 H 2300 Pr 100 Md 150 | D123: 1490.56
B124: X5D32-23.26B100 | C124: XINNIX X5D32 Schuifdeursysteem B 2600 H 2300 Pr 100 Md 150 | D124: 1490.56
B125: X5D32-23.27B100 | C125: XINNIX X5D32 Schuifdeursysteem B 2700 H 2300 Pr 100 Md 150 | D125: 1490.56
B126: X5D32-23.28B100 | C126: XINNIX X5D32 Schuifdeursysteem B 2800 H 2300 Pr 100 Md 150 | D126: 1490.56
B127: X5D32-23.29B100 | C127: XINNIX X5D32 Schuifdeursysteem B 2900 H 2300 Pr 100 Md 150 | D127: 1490.56
B128: X5D32-23.30B100 | C128: XINNIX X5D32 Schuifdeursysteem B 3000 H 2300 Pr 100 Md 150 | D128: 1490.56
B129: X5D32-27.15B100 | C129: XINNIX X5D32 Schuifdeursysteem B 1500 H 2700 Pr 100 Md 150 | D129: 1076.81
B130: X5D32-27.16B100 | C130: XINNIX X5D32 Schuifdeursysteem B 1600 H 2700 Pr 100 Md 150 | D130: 1076.81
B131: X5D32-27.17B100 | C131: XINNIX X5D32 Schuifdeursysteem B 1700 H 2700 Pr 100 Md 150 | D131: 1076.81
B132: X5D32-27.18B100 | C132: XINNIX X5D32 Schuifdeursysteem B 1800 H 2700 Pr 100 Md 150 | D132: 1076.81
B133: X5D32-27.19B100 | C133: XINNIX X5D32 Schuifdeursysteem B 1900 H 2700 Pr 100 Md 150 | D133: 1262.47
B134: X5D32-27.20B100 | C134: XINNIX X5D32 Schuifdeursysteem B 2000 H 2700 Pr 100 Md 150 | D134: 1262.47
B135: X5D32-27.21B100 | C135: XINNIX X5D32 Schuifdeursysteem B 2100 H 2700 Pr 100 Md 150 | D135: 1389.78
B136: X5D32-27.22B100 | C136: XINNIX X5D32 Schuifdeursysteem B 2200 H 2700 Pr 100 Md 150 | D136: 1389.78
B137: X5D32-27.23B100 | C137: XINNIX X5D32 Schuifdeursysteem B 2300 H 2700 Pr 100 Md 150 | D137: 1389.78
B138: X5D32-27.24B100 | C138: XINNIX X5D32 Schuifdeursysteem B 2400 H 2700 Pr 100 Md 150 | D138: 1389.78
B139: X5D32-27.25B100 | C139: XINNIX X5D32 Schuifdeursysteem B 2500 H 2700 Pr 100 Md 150 | D139: 1771.7
B140: X5D32-27.26B100 | C140: XINNIX X5D32 Schuifdeursysteem B 2600 H 2700 Pr 100 Md 150 | D140: 1771.7
B141: X5D32-27.27B100 | C141: XINNIX X5D32 Schuifdeursysteem B 2700 H 2700 Pr 100 Md 150 | D141: 1771.7
B142: X5D32-27.28B100 | C142: XINNIX X5D32 Schuifdeursysteem B 2800 H 2700 Pr 100 Md 150 | D142: 1771.7
B143: X5D32-27.29B100 | C143: XINNIX X5D32 Schuifdeursysteem B 2900 H 2700 Pr 100 Md 150 | D143: 1771.7
B144: X5D32-27.30B100 | C144: XINNIX X5D32 Schuifdeursysteem B 3000 H 2700 Pr 100 Md 150 | D144: 1771.7
B145: X5D32-30.15B100 | C145: XINNIX X5D32 Schuifdeursysteem B 1500 H 3000 Pr 100 Md 150 | D145: 1135.16
B146: X5D32-30.16B100 | C146: XINNIX X5D32 Schuifdeursysteem B 1600 H 3000 Pr 100 Md 150 | D146: 1135.16
B147: X5D32-30.17B100 | C147: XINNIX X5D32 Schuifdeursysteem B 1700 H 3000 Pr 100 Md 150 | D147: 1135.16
B148: X5D32-30.18B100 | C148: XINNIX X5D32 Schuifdeursysteem B 1800 H 3000 Pr 100 Md 150 | D148: 1135.16
B149: X5D32-30.19B100 | C149: XINNIX X5D32 Schuifdeursysteem B 1900 H 3000 Pr 100 Md 150 | D149: 1320.82
B150: X5D32-30.20B100 | C150: XINNIX X5D32 Schuifdeursysteem B 2000 H 3000 Pr 100 Md 150 | D150: 1320.82
B151: X5D32-30.21B100 | C151: XINNIX X5D32 Schuifdeursysteem B 2100 H 3000 Pr 100 Md 150 | D151: 1448.13
B152: X5D32-30.22B100 | C152: XINNIX X5D32 Schuifdeursysteem B 2200 H 3000 Pr 100 Md 150 | D152: 1448.13
B153: X5D32-30.23B100 | C153: XINNIX X5D32 Schuifdeursysteem B 2300 H 3000 Pr 100 Md 150 | D153: 1448.13
B154: X5D32-30.24B100 | C154: XINNIX X5D32 Schuifdeursysteem B 2400 H 3000 Pr 100 Md 150 | D154: 1448.13
B155: X5D32-30.25B100 | C155: XINNIX X5D32 Schuifdeursysteem B 2500 H 3000 Pr 100 Md 150 | D155: 1856.58
B156: X5D32-30.26B100 | C156: XINNIX X5D32 Schuifdeursysteem B 2600 H 3000 Pr 100 Md 150 | D156: 1856.58
B157: X5D32-30.27B100 | C157: XINNIX X5D32 Schuifdeursysteem B 2700 H 3000 Pr 100 Md 150 | D157: 1856.58
B158: X5D32-30.28B100 | C158: XINNIX X5D32 Schuifdeursysteem B 2800 H 3000 Pr 100 Md 150 | D158: 1856.58
B159: X5D32-30.29B100 | C159: XINNIX X5D32 Schuifdeursysteem B 2900 H 3000 Pr 100 Md 150 | D159: 1856.58
B160: X5D32-30.30B100 | C160: XINNIX X5D32 Schuifdeursysteem B 3000 H 3000 Pr 100 Md 150 | D160: 1856.58
B161: X5D32-35.15B100 | C161: XINNIX X5D32 Schuifdeursysteem B 1500 H 3500 Pr 100 Md 150 | D161: 1220.04
B162: X5D32-35.16B100 | C162: XINNIX X5D32 Schuifdeursysteem B 1600 H 3500 Pr 100 Md 150 | D162: 1220.04
B163: X5D32-35.17B100 | C163: XINNIX X5D32 Schuifdeursysteem B 1700 H 3500 Pr 100 Md 150 | D163: 1220.04
B164: X5D32-35.18B100 | C164: XINNIX X5D32 Schuifdeursysteem B 1800 H 3500 Pr 100 Md 150 | D164: 1220.04
B165: X5D32-35.19B100 | C165: XINNIX X5D32 Schuifdeursysteem B 1900 H 3500 Pr 100 Md 150 | D165: 1405.69
B166: X5D32-35.20B100 | C166: XINNIX X5D32 Schuifdeursysteem B 2000 H 3500 Pr 100 Md 150 | D166: 1405.69
B167: X5D32-35.21B100 | C167: XINNIX X5D32 Schuifdeursysteem B 2100 H 3500 Pr 100 Md 150 | D167: 1533
B168: X5D32-35.22B100 | C168: XINNIX X5D32 Schuifdeursysteem B 2200 H 3500 Pr 100 Md 150 | D168: 1533
B169: X5D32-35.23B100 | C169: XINNIX X5D32 Schuifdeursysteem B 2300 H 3500 Pr 100 Md 150 | D169: 1533
B170: X5D32-35.24B100 | C170: XINNIX X5D32 Schuifdeursysteem B 2400 H 3500 Pr 100 Md 150 | D170: 1533
B171: X5D32-35.25B100 | C171: XINNIX X5D32 Schuifdeursysteem B 2500 H 3500 Pr 100 Md 150 | D171: 2015.71
B172: X5D32-35.26B100 | C172: XINNIX X5D32 Schuifdeursysteem B 2600 H 3500 Pr 100 Md 150 | D172: 2015.71
B173: X5D32-35.27B100 | C173: XINNIX X5D32 Schuifdeursysteem B 2700 H 3500 Pr 100 Md 150 | D173: 2015.71
B174: X5D32-35.28B100 | C174: XINNIX X5D32 Schuifdeursysteem B 2800 H 3500 Pr 100 Md 150 | D174: 2015.71
B175: X5D32-35.29B100 | C175: XINNIX X5D32 Schuifdeursysteem B 2900 H 3500 Pr 100 Md 150 | D175: 2015.71
B176: X5D32-35.30B100 | C176: XINNIX X5D32 Schuifdeursysteem B 3000 H 3500 Pr 100 Md 150 | D176: 2015.71

Sheet STAANDERS (hidden)
C2: X5-1972 | F2: XINNIX X5 Schuifdeursysteem Enkele beplating (1/2) | G2: 280.092
C3: X5-2015 | F3: XINNIX X5 Schuifdeursysteem Enkele beplating (1/2) | G3: 280.092
C4: X5-2040 | F4: XINNIX X5 Schuifdeursysteem Enkele beplating (1/2) | G4: 280.092
C5: X5-2115 | F5: XINNIX X5 Schuifdeursysteem Enkele beplating (1/2) | G5: 280.092
C6: X5-2315 | F6: XINNIX X5 Schuifdeursysteem Enkele beplating (1/2) | G6: 294.831
C7: X5D-1972 | F7: XINNIX X5D Schuifdeursysteem Dubbele Beplating (1/2) | G7: 280.092
C8: X5D-2015 | F8: XINNIX X5D Schuifdeursysteem Dubbele Beplating (1/2) | G8: 280.092
C9: X5D-2040 | F9: XINNIX X5D Schuifdeursysteem Dubbele Beplating (1/2) | G9: 280.092
C10: X5D-2115 | F10: XINNIX X5D Schuifdeursysteem Dubbele Beplating (1/2) | G10: 280.092
C11: X5D-2315 | F11: XINNIX X5D Schuifdeursysteem Dubbele Beplating (1/2) | G11: 294.831
C12: X5D-2415 | F12: XINNIX X5D Schuifdeursysteem Dubbele Beplating (1/2) | G12: 294.831
C13: X5D-2715 | F13: XINNIX X5D Schuifdeursysteem Dubbele Beplating (1/2) | G13: 464.355
C14: X5D-3015 | F14: XINNIX X5D Schuifdeursysteem Dubbele Beplating (1/2) | G14: 493.8534
C15: X5D32-1972 | F15: XINNIX X5D32 Schuifdeursysteem Dubbele Beplating (1/2) | G15: 309.0804
C16: X5D32-2015 | F16: XINNIX X5D32 Schuifdeursysteem Dubbele Beplating (1/2) | G16: 309.0804
C17: X5D32-2040 | F17: XINNIX X5D32 Schuifdeursysteem Dubbele Beplating (1/2) | G17: 309.0804
C18: X5D32-2115 | F18: XINNIX X5D32 Schuifdeursysteem Dubbele Beplating (1/2) | G18: 309.0804
C19: X5D32-2315 | F19: XINNIX X5D32 Schuifdeursysteem Dubbele Beplating (1/2) | G19: 324.3294
C20: X5D32-2415 | F20: XINNIX X5D32 Schuifdeursysteem Dubbele Beplating (1/2) | G20: 324.3294
C21: X5D32-2715 | F21: XINNIX X5D32 Schuifdeursysteem Dubbele Beplating (1/2) | G21: 493.8534
C22: X5D32-3015 | F22: XINNIX X5D32 Schuifdeursysteem Dubbele Beplating (1/2) | G22: 530.706
C23: X5D32-3515 | F23: XINNIX X5D32 Schuifdeursysteem Dubbele Beplating (1/2) | G23: 611.7858
C24: X5-WALL2115 | F24: XINNIX X5 WALL Schuifdeursysteem Enkele beplating (1/2) | G24: 200.3688
C25: X5-WALL2415 | F25: XINNIX X5 WALL Schuifdeursysteem Enkele beplating (1/2) | G25: 200.3688
C26: X5D-WALL2415 | F26: XINNIX X5D WALL Schuifdeursysteem Dubbele Beplating (1/2) | G26: 200.3688
C27: X5D-WALL2715 | F27: XINNIX X5D WALL Schuifdeursysteem Dubbele Beplating (1/2) | G27: 330.6228
C28: X5D-WALL3015 | F28: XINNIX X5D WALL Schuifdeursysteem Dubbele Beplating (1/2) | G28: 349.2276
C29: X5D-WALL3515 | F29: XINNIX X5D WALL Schuifdeursysteem Dubbele Beplating (1/2) | G29: 349.2276
C30: X5D32-WALL2415 | F30: XINNIX X5D32 WALL Schuifdeursysteem Dubbele Beplating (1/2) | G30: 227.5722
C31: X5D32-WALL2715 | F31: XINNIX X5D32 WALL Schuifdeursysteem Dubbele Beplating (1/2) | G31: 354.9498
C32: X5D32-WALL3015 | F32: XINNIX X5D32 WALL Schuifdeursysteem Dubbele Beplating (1/2) | G32: 364.9662
C33: X5D32-WALL3515 | F33: XINNIX X5D32 WALL Schuifdeursysteem Dubbele Beplating (1/2) | G33: 364.9662
C34: X5D50-1972 | F34: XINNIX X5D50 Schuifdeursysteem Dubbele Beplating (1/2) | G34: 362.1408
C35: X5D50-2015 | F35: XINNIX X5D50 Schuifdeursysteem Dubbele Beplating (1/2) | G35: 362.1408
C36: X5D50-2040 | F36: XINNIX X5D50 Schuifdeursysteem Dubbele Beplating (1/2) | G36: 362.1408
C37: X5D50-2115 | F37: XINNIX X5D50 Schuifdeursysteem Dubbele Beplating (1/2) | G37: 362.1408
C38: X5D50-2315 | F38: XINNIX X5D50 Schuifdeursysteem Dubbele Beplating (1/2) | G38: 380.001
C39: X5D50-2415 | F39: XINNIX X5D50 Schuifdeursysteem Dubbele Beplating (1/2) | G39: 380.001
C40: X5D50-2715 | F40: XINNIX X5D50 Schuifdeursysteem Dubbele Beplating (1/2) | G40: 578.6358
C41: X5D50-3015 | F41: XINNIX X5D50 Schuifdeursysteem Dubbele Beplating (1/2) | G41: 621.8226
C42: X5D50-3515 | F42: XINNIX X5D50 Schuifdeursysteem Dubbele Beplating (1/2) | G42: 716.8356
C43: X5D50-WALL2415 | F43: XINNIX X5D50 WALL Schuifdeursysteem Dubbele Beplating (1/2) | G43: 261.7014
C44: X5D50-WALL2715 | F44: XINNIX X5D50 WALL Schuifdeursysteem Dubbele Beplating (1/2) | G44: 408.1836
C45: X5D50-WALL3015 | F45: XINNIX X5D50 WALL Schuifdeursysteem Dubbele Beplating (1/2) | G45: 419.6994
C46: X5D50-WALL3515 | F46: XINNIX X5D50 WALL Schuifdeursysteem Dubbele Beplating (1/2) | G46: 460.02

Sheet MIDDENSTAANDERS (hidden)
B2: X5D/XM2115 | D2: Extra set middenstaanders breedte>1230 mm H 2115 | E2: 162.1596
B3: X5D/XM2315 | D3: Extra set middenstaanders breedte>1230 mm H 2315 | E3: 176.9088
B4: X5D/XM2715 | D4: Extra set middenstaanders breedte>1230 mm H 2715 | E4: 265.353
B5: X5D/XM3015 | D5: Extra set middenstaanders breedte>1230 mm H 3015 | E5: 287.4768
B6: X5D/XM3515 | D6: Extra set middenstaanders breedte>1230 mm H 3515 | E6: 339.0684

Sheet RAIL (hidden)
B2: X5-0830.75 | C2: XINNIX X5 Schuifdeursysteem doorgang B 800 Pr 75 Md 100/125 (2/2) | E2: 268.311 | I2: X5050 | J2: X5 synchroon systeem voor dubbele schuifdeur
B3: X5-0930.75 | C3: XINNIX X5 Schuifdeursysteem doorgang B 900 Pr 75 Md 100/125 (2/2) | E3: 268.311 | I3: X5060 | J3: X5 parallel systeem met tandriem
B4: X5-1030.75 | C4: XINNIX X5 Schuifdeursysteem doorgang B 1000 Pr 75 Md 100/125 (2/2) | E4: 268.311 | I4: X5065-L | J4: Aanhaakset voor parallelsysteem links
B5: X5-1230.75 | C5: XINNIX X5 Schuifdeursysteem doorgang B 1200 Pr 75 Md 100/125 (2/2) | E5: 319.4028 | I5: X5065-R | J5: Aanhaakset voor parallelsysteem rechts
B6: X5-1530.75 | C6: XINNIX X5 Schuifdeursysteem doorgang B 1500 Pr 75 Md 100/125 (2/2) | E6: 428.0022
B7: X5-2030.75 | C7: XINNIX X5 Schuifdeursysteem doorgang B 2000 Pr 75 Md 100/125 (2/2) | E7: 600.3618
B8: X5-0830.100 | C8: XINNIX X5 Schuifdeursysteem doorgang B 800 Pr 100 Md 125/150 (2/2) | E8: 268.311
B9: X5-0930.100 | C9: XINNIX X5 Schuifdeursysteem doorgang B 900 Pr 100 Md 125/150 (2/2) | E9: 268.311
B10: X5-1030.100 | C10: XINNIX X5 Schuifdeursysteem doorgang B 1000 Pr 100 Md 125/150 (2/2) | E10: 268.311
B11: X5-1230.100 | C11: XINNIX X5 Schuifdeursysteem doorgang B 1200 Pr 100 Md 125/150 (2/2) | E11: 319.4028
B12: X5-1530.100 | C12: XINNIX X5 Schuifdeursysteem doorgang B 1500 Pr 100 Md 125/150 (2/2) | E12: 428.0022
B13: X5-2030.100 | C13: XINNIX X5 Schuifdeursysteem doorgang B 2000 Pr 100 Md 125/150 (2/2) | E13: 600.3618
B14: X5-2430.100 | C14: XINNIX X5 Schuifdeursysteem doorgang B 2400 Pr 100 Md 125/150 (2/2) | E14: 728.5656
B15: X5-3030.100 | C15: XINNIX X5 Schuifdeursysteem doorgang B 3000 Pr 100 Md 125/150 (2/2) | E15: 977.3844
B16: X5-0830.50GLC | C16: XINNIX X5 Glas Schuifdeursysteem - klem met cover doorgang B 800 Pr 50 Md 100 (2/2) | E16: 498.2802
B17: X5-0930.50GLC | C17: XINNIX X5 Glas Schuifdeursysteem - klem met cover doorgang B 900 Pr 50 Md 100 (2/2) | E17: 498.2802
B18: X5-1030.50GLC | C18: XINNIX X5 Glas Schuifdeursysteem - klem met cover doorgang B 1000 Pr 50 Md 100 (2/2) | E18: 498.2802
B19: X5-0830.75GLC | C19: XINNIX X5 Glas Schuifdeursysteem - klem met cover doorgang B 800 Pr 75 Md 100/125 (2/2) | E19: 511.0506
B20: X5-0930.75GLC | C20: XINNIX X5 Glas Schuifdeursysteem - klem met cover doorgang B 900 Pr 75 Md 100/125 (2/2) | E20: 511.0506
B21: X5-1030.75GLC | C21: XINNIX X5 Glas Schuifdeursysteem - klem met cover doorgang B 1000 Pr 75 Md 100/125 (2/2) | E21: 511.0506
B22: X5-1230.75GLC | C22: XINNIX X5 Glas Schuifdeursysteem - klem met cover doorgang B 1200 Pr 75 Md 100/125 (2/2) | E22: 574.9332
B23: X5-1530.75GLC | C23: XINNIX X5 Glas Schuifdeursysteem - klem met cover doorgang B 1500 Pr 75 Md 100/125 (2/2) | E23: 683.5632
B24: X5-H100-0830.75 | C24: X5 Schuifdeursysteem Hawa doorgang B 800 Pr 75 Md 100/125 (2/2) | E24: 570.8736
B25: X5-H100-0930.75 | C25: X5 Schuifdeursysteem Hawa doorgang B 900 Pr 75 Md 100/125 (2/2) | E25: 570.8736
B26: X5-H100-1030.75 | C26: X5 Schuifdeursysteem Hawa doorgang B 1000 Pr 75 Md 100/125 (2/2) | E26: 570.8736
B27: X5-H100-1230.75 | C27: X5 Schuifdeursysteem Hawa doorgang B 1200 Pr 75 Md 100/125 (2/2) | E27: 642.2328
B28: X5-H100-0830.100 | C28: X5 Schuifdeursysteem Hawa doorgang B 800 Pr 100 Md 125/150 (2/2) | E28: 570.8736
B29: X5-H100-0930.100 | C29: X5 Schuifdeursysteem Hawa doorgang B 900 Pr 100 Md 125/150 (2/2) | E29: 570.8736
B30: X5-H100-1030.100 | C30: X5 Schuifdeursysteem Hawa doorgang B 1000 Pr 100 Md 125/150 (2/2) | E30: 570.8736
B31: X5-H100-1230.100 | C31: X5 Schuifdeursysteem Hawa doorgang B 1200 Pr 100 Md 125/150 (2/2) | E31: 642.2328
B32: X5-DS-1030.75 | C32: Xinnix X5 Schuifdeursysteem - Softopen + softclose - doorgang B 1000 Pr 75 Md 100/125 (2/2) | E32: 332.19
B33: X5-DS-1230.75 | C33: Xinnix X5 Schuifdeursysteem - Softopen + softclose - doorgang B 1200 Pr 75 Md 100/125 (2/2) | E33: 382.29
B34: X5-DS-1530.75 | C34: Xinnix X5 Schuifdeursysteem - Softopen + softclose - doorgang B 1500 Pr 75 Md 100/125 (2/2) | E34: 491.88
B35: X5-DS-2030.75 | C35: Xinnix X5 Schuifdeursysteem - Softopen + softclose - doorgang B 2000 Pr 75 Md 100/125 (2/2) | E35: 664.24
B36: X5-DS-0830.75 | C36: Xinnix X5 Schuifdeursysteem - Softopen + softclose - doorgang B 800 Pr 75 Md 100/125 (2/2) | E36: 332.19
B37: X5-DS-0930.75 | C37: Xinnix X5 Schuifdeursysteem - Softopen + softclose - doorgang B 900 Pr 75 Md 100/125 (2/2) | E37: 332.19
B38: X5-DS-1030.100 | C38: Xinnix X5 Schuifdeursysteem - Softopen + softclose - doorgang B 1000 Pr 100 Md 125/150 (2/2 | E38: 332.19
B39: X5-DS-1230.100 | C39: Xinnix X5 Schuifdeursysteem - Softopen + softclose - doorgang B 1200 Pr 100 Md 125/150 (2/2) | E39: 383.29
B40: X5-DS-1530.100 | C40: Xinnix X5 Schuifdeursysteem - Softopen + softclose - doorgang B 1500 Pr 100 Md 125/150 (2/2) | E40: 491.88
B41: X5-DS-2030.100 | C41: Xinnix X5 Schuifdeursysteem - Softopen + softclose - doorgang B 2000 Pr 100 Md 125/150 (2/2) | E41: 664.24
B42: X5-DS-2430.100 | C42: Xinnix X5 Schuifdeursysteem - Softopen + softclose - doorgang B 2400 Pr 100 Md 125/150 (2/2) | E42: 792.45
B43: X5-DS-3030.100 | C43: Xinnix X5 Schuifdeursysteem - Softopen + softclose - doorgang B 3000 Pr 100 Md 125/150 (2/2) | E43: 1041.27
B44: X5-DS-0830.100 | C44: Xinnix X5 Schuifdeursysteem - Softopen + softclose - doorgang B 800 Pr 100 Md 125/150 (2/2) | E44: 332.19
B45: X5-DS-0930.100 | C45: Xinnix X5 Schuifdeursysteem - Softopen + softclose - doorgang B 900 Pr 100 Md 125/150 (2/2) | E45: 332.19
B46: X5-DS-1030.75GLC | C46: Xinnix X5 Schuifdeursysteem - Softopen + softclose - klem met cover - doorgang B 1000 Pr 100 Md 125 (2/2) | E46: 574.93
B47: X5-DS-1230.75GLC | C47: Xinnix X5 Schuifdeursysteem - Softopen + softclose - klem met cover -doorgang B 1200 Pr 100 Md 125 (2/2) | E47: 638.82
B48: X5-DS-1530.75GLC | C48: Xinnix X5 Schuifdeursysteem - Softopen + softclose - klem met cover - doorgang B 1500 Pr 100 Md 125 (2/2) | E48: 747.45
B49: X5-DS-0830.75GLC | C49: Xinnix X5 Schuifdeursysteem - Softopen + softclose - klem met cover - doorgang B 800 Pr 100 Md 125 (2/2) | E49: 574.93
B50: X5-DS-0930.75GLC | C50: Xinnix X5 Schuifdeursysteem - Softopen + softclose - klem met cover - doorgang B 900 Pr 100 Md 125 (2/2) | E50: 574.93

Sheet AFWERKING (hidden)
B1: X5D32-XINNIX/D.1 | C1: XINNIX X5D32 Afwerkset voor dubbele deuren voor dubbele beplating (vrije doorgang <2400 mm) | D1: 94.7988
B2: X5D32-XINNIX/D.2 | C2: XINNIX X5D32 Afwerkset voor dubbele deuren voor dubbele beplating (vrije doorgang 2400-4000 mm) | D2: 189.5976
B3: X5D32-XINNIX-23.139/1 | C3: XINNIX X5D32 Afwerkset H 2315 B 1230 voor dubbele beplating (<1230mm) | D3: 187.8126
B4: X5D32-XINNIX-23.139/2 | C4: XINNIX X5D32 Afwerkset H 2315 B 2400 voor dubbele beplating (1230mm - 2400mm) | D4: 238.1292
B5: X5D32-XINNIX-23.139/3 | C5: XINNIX X5D32 Afwerkset H 2315 B 3600 voor dubbele beplating (2400mm - 3600mm) | D5: 288.4254
B6: X5D32-XINNIX-23.164/1 | C6: XINNIX X5D32 Afwerkset H 2315 B 1230 voor dubbele beplating (<1230mm) | D6: 187.8126
B7: X5D32-XINNIX-23.164/2 | C7: XINNIX X5D32 Afwerkset H 2315 B 2400 voor dubbele beplating (1230mm - 2400mm) | D7: 238.1292
B8: X5D32-XINNIX-23.164/3 | C8: XINNIX X5D32 Afwerkset H 2315 B 3600 voor dubbele beplating (2400mm - 3600mm) | D8: 288.4254
B9: X5D32-XINNIX-27.139/1 | C9: XINNIX X5D32 Afwerkset H 2715 B 1230 voor dubbele beplating (<1230mm) | D9: 265.1082
B10: X5D32-XINNIX-27.139/2 | C10: XINNIX X5D32 Afwerkset H 2715 B 2400 voor dubbele beplating (1230mm - 2400mm) | D10: 347.1774
B11: X5D32-XINNIX-27.139/3 | C11: XINNIX X5D32 Afwerkset H 2715 B 3600 voor dubbele beplating (2400mm - 3600mm) | D11: 428.6448
B12: X5D32-XINNIX-27.164/1 | C12: XINNIX X5D32 Afwerkset H 2715 B 1230 voor dubbele beplating (<1230mm) | D12: 265.1082
B13: X5D32-XINNIX-27.164/2 | C13: XINNIX X5D32 Afwerkset H 2715 B 2400 voor dubbele beplating (1230mm - 2400mm) | D13: 347.1774
B14: X5D32-XINNIX-27.164/3 | C14: XINNIX X5D32 Afwerkset H 2715 B 3600 voor dubbele beplating (2400mm - 3600mm) | D14: 428.6448
B15: X5D32-XINNIX-30.139/1 | C15: XINNIX X5D32 Afwerkset H 3015 B 1230 voor dubbele beplating (<1230mm) | D15: 280.3776
B16: X5D32-XINNIX-30.139/2 | C16: XINNIX X5D32 Afwerkset H 3015 B 2400 voor dubbele beplating (1230mm - 2400mm) | D16: 362.2122
B17: X5D32-XINNIX-30.139/3 | C17: XINNIX X5D32 Afwerkset H 3015 B 3600 voor dubbele beplating (2400mm - 3600mm) | D17: 444.0366
B18: X5D32-XINNIX-30.164/1 | C18: XINNIX X5D32 Afwerkset H 3015 B 1230 voor dubbele beplating (<1230mm) | D18: 280.3776
B19: X5D32-XINNIX-30.164/2 | C19: XINNIX X5D32 Afwerkset H 3015 B 2400 voor dubbele beplating (1230mm - 2400mm) | D19: 362.2122
B20: X5D32-XINNIX-30.164/3 | C20: XINNIX X5D32 Afwerkset H 3015 B 3600 voor dubbele beplating (2400mm - 3600mm) | D20: 444.0366
B21: X5D32-XINNIX-35.164/1 | C21: XINNIX X5D32 Afwerkset H 3515 B 1230 voor dubbele beplating (<1230mm) | D21: 321.6468
B22: X5D32-XINNIX-35.164/2 | C22: XINNIX X5D32 Afwerkset H 3515 B 2400 voor dubbele beplating (1230mm - 2400mm) | D22: 413.9466
B23: X5D32-XINNIX-35.164/3 | C23: XINNIX X5D32 Afwerkset H 3515 B 3600 voor dubbele beplating (2400mm - 3600 mm) | D23: 507.4704
B24: X5D-XINNIX/D.1 | C24: Afwerkset X5D voor dubbele beplating voor dubbele deuren (vrije doorgang <2400 mm) | D24: 94.7988
B25: X5D-XINNIX/D.2 | C25: Afwerkset X5D voor dubbele beplating voor dubbele deuren (vrije doorgang 2400-4000 mm) | D25: 189.5976
B26: X5D-XINNIX-23.125/1 | C26: XINNIX X5D Afwerkset H 2315 B 1230 voor dubbele beplating (<1230mm) | D26: 178.8672
B27: X5D-XINNIX-23.125/2 | C27: XINNIX X5D Afwerkset H 2315 B 2400 voor dubbele beplating (1230mm -2400 mm) | D27: 226.7868
B28: X5D-XINNIX-23.125/3 | C28: XINNIX X5D Afwerkset H 2315 B 3600 voor dubbele beplating (2400mm - 3600mm) | D28: 274.6758
B29: X5D-XINNIX-23.150/1 | C29: XINNIX X5D Afwerkset H 2315 B 1230 voor dubbele beplating (<1230mm) | D29: 178.8672
B30: X5D-XINNIX-23.150/2 | C30: XINNIX X5D Afwerkset H 2315 B 2400 voor dubbele beplating (1230mm - 2400mm) | D30: 226.7868
B31: X5D-XINNIX-23.150/3 | C31: XINNIX X5D Afwerkset H 2315 B 3600 voor dubbele beplating ( 2400mm - 3600 mm) | D31: 274.6758
B32: X5D-XINNIX-27.125/1 | C32: XINNIX X5D Afwerkset H 2715 B 1230 voor dubbele beplating (<1230mm) | D32: 252.3378
B33: X5D-XINNIX-27.125/2 | C33: XINNIX X5D Afwerkset H 2715 B 2400 voor dubbele beplating (1230mm - 2400mm) | D33: 330.276
B34: X5D-XINNIX-27.125/3 | C34: XINNIX X5D Afwerkset H 2715 B 3600 voor dubbele beplating (2400mm - 3600mm) | D34: 408.1938
B35: X5D-XINNIX-27.150/1 | C35: XINNIX X5D Afwerkset H 2715 B 1230 voor dubbele beplating (<1230mm) | D35: 252.3378
B36: X5D-XINNIX-27.150/2 | C36: XINNIX X5D Afwerkset H 2715 B 2400 voor dubbele beplating (1230mm - 2400mm) | D36: 330.276
B37: X5D-XINNIX-27.150/3 | C37: XINNIX X5D Afwerkset H 2715 B 3600 voor dubbele beplating (2400mm - 3600mm) | D37: 408.1938
B38: X5D-XINNIX-30.125/1 | C38: XINNIX X5D Afwerkset H 3015 B 1230 voor dubbele beplating (<1230mm) | D38: 267.0258
B39: X5D-XINNIX-30.125/2 | C39: XINNIX X5D Afwerkset H 3015 B 2400 voor dubbele beplating (1230mm - 2400mm) | D39: 344.9436
B40: X5D-XINNIX-30.125/3 | C40: XINNIX X5D Afwerkset H 3015 B 3600 voor dubbele beplating (2400mm - 3600mm) | D40: 422.8818
B41: X5D-XINNIX-30.150/1 | C41: XINNIX X5D Afwerkset H 3015 B 1230 voor dubbele beplating (<1230mm) | D41: 267.0258
B42: X5D-XINNIX-30.150/2 | C42: XINNIX X5D Afwerkset H 3015 B 2400 voor dubbele beplating (1230mm - 2400mm) | D42: 344.9436
B43: X5D-XINNIX-30.150/3 | C43: XINNIX X5D Afwerkset H 3015 B 3600 voor dubbele beplating (2400mm - 3600mm) | D43: 422.8818
B44: X5D-XINNIXGL-23.100/1 | C44: XINNIX X5 Afwerkset H2315 B 1230 GLAS | D44: 162.231
B45: X5D-XINNIXGL-23.125/1 | C45: XINNIX X5 Afwerkset H2315 B 1230 GLAS | D45: 178.8672
B46: X5D-XINNIXGL-23.125/2 | C46: XINNIX X5 Afwerkset H2315 B 2400 GLAS | D46: 226.7868
B47: X5D-XINNIXGL-27.125/1 | C47: XINNIX X5 Afwerkset H2715 B 1230 GLAS | D47: 236.3544
B48: X5D-XINNIXGL-27.125/2 | C48: XINNIX X5 Afwerkset H 3015 B 2400 GLAS | D48: 317.48
B49: X5D-XINNIXGL-30.125/1 | C49: XINNIX X5 Afwerkset H 3015 B 1230 GLAS | D49: 279.735
B50: X5D-XINNIXGL-30.125/2 | C50: XINNIX X5 Afwerkset H 3015 B 2400 GLAS | D50: 344.9436
B51: X5D32-XINNIXGL-23.114/1 | C51: XINNIX X5D32 Afwerkset H2315 B 1230 GLAS | D51: 187.8126
B52: X5D32-XINNIXGL-23.114/2 | C52: XINNIX X5D32 Afwerkset H2315 B 2400 GLAS | D52: 237.6396
B53: X5D32-XINNIXGL-23.139/1 | C53: XINNIX X5D32 Afwerkset H2315 B 1230 GLAS | D53: 187.8126
B54: X5D32-XINNIXGL-23.139/2 | C54: XINNIX X5D32 Afwerkset H2315 B 2400 GLAS | D54: 237.6396
B55: X5D32-XINNIXGL-27.114/1 | C55: XINNIX X5D32 Afwerkset H2715 B 1230 GLAS | D55: 265.1082
B56: X5D32-XINNIXGL-27.114/2 | C56: XINNIX X5D32 Afwerkset H2715 B 2400 GLAS | D56: 346.2288
B57: X5D32-XINNIXGL-27.139/1 | C57: XINNIX X5D32 Afwerkset H2715 B 1230 GLAS | D57: 265.1082
B58: X5D32-XINNIXGL-27.139/2 | C58: XINNIX X5D32 Afwerkset H2715 B 2400 GLAS | D58: 346.2288
B59: X5D32-XINNIXGL-30.139/1 | C59: XINNIX X5D32 Afwerkset H 3015 B 1230 GLAS | D59: 280.4388
B60: X5D32-XINNIXGL-30.139/2 | C60: XINNIX X5D32 Afwerkset H 3015 B 2400 GLAS | D60: 362.2122
B61: X5-PURE/D | C61: Afwerkset X5 voor dubbele deuren PURE | D61: 95.8392
B62: X5-PURE-23.100 | C62: XINNIX X5 Afwerkset H 2315 | D62: 264.1494
B63: X5-PURE-23.125 | C63: XINNIX X5/X5D Afwerkset H 2315 | D63: 264.1494
B64: X5-PURE-23.139 | C64: XINNIX X5D32 Afwerkset H 2315 MS 75 | D64: 277.3788
B65: X5-PURE-23.150 | C65: XINNIX X5D Afwerkset H 2315 | D65: 264.1494
B66: X5-PURE-23.164 | C66: XINNIX X5D32 Afwerkset H 2315 MS 100 | D66: 277.3788
B67: X5-PURE-27.125 | C67: XINNIX X5/X5D Afwerkset H 2715 | D67: 334.1112
B68: X5-PURE-27.139 | C68: XINNIX X5D32 Afwerkset H 2715 MS 75 | D68: 350.8494
B69: X5-PURE-27.150 | C69: XINNIX X5D Afwerkset H 2715 | D69: 334.1112
B70: X5-PURE-27.164 | C70: XINNIX X5D32 Afwerkset H 2715 MS 100 | D70: 350.8494
B71: X5-PURE-35.139 | C71: XINNIX X5D32 Afwerkset H 3515 MS 75 | D71: 385.8354
B72: X5-PURE-35.164 | C72: XINNIX X5D32 Afwerkset H 3515 MS 1230 | D72: 385.8354
B73: X5-PURE-30.125 | C73: XINNIX X5/X5D Afwerkset H 3015 | D73: 348.1566
B74: X5-PURE-30.139 | C74: XINNIX X5D32 Afwerkset H 3015 MS 75 | D74: 365.5884
B75: X5-PURE-30.150 | C75: XINNIX X5D Afwerkset H 3015 | D75: 348.1566
B76: X5-PURE-30.164 | C76: XINNIX X5D32 Afwerkset H 3015 MS 1230 | D76: 365.5884
B77: X5-PUREGL-23.100 | C77: XINNIX X5 Afwerkset H 2315 GLAS | D77: 132.3654
B78: X5-PUREGL-23.125 | C78: XINNIX X5D Afwerkset H 2315 GLAS | D78: 132.3654
B79: X5-PUREGL-27.100 | C79: XINNIX X5 Afwerkset H 2715 GLAS | D79: 205.8258
B80: X5-PUREGL-27.125 | C80: XINNIX X5D Afwerkset H 2715 GLAS | D80: 205.8258
B81: X5-PUREGL-30.100 | C81: XINNIX X5 Afwerkset H 3015 GLAS | D81: 220.5036
B82: X5-PUREGL-30.125 | C82: XINNIX X5D Afwerkset H 3015 GLAS | D82: 220.5036
B83: X5-PUREGL-23.114 | C83: XINNIX X5D32 Afwerkset H 2315 GLAS | D83: 139.0056
B84: X5-PUREGL-23.139 | C84: XINNIX X5D32 Afwerkset H 2315 GLAS | D84: 139.0056
B85: X5-PUREGL-27.114 | C85: XINNIX X5D32 Afwerkset H 2715 GLAS | D85: 216.1788
B86: X5-PUREGL-27.139 | C86: XINNIX X5D32 Afwerkset H 2715 GLAS | D86: 216.1788
B87: X5-PUREGL-30.114 | C87: XINNIX X5D32 Afwerkset H 3015 GLAS | D87: 231.5808
B88: X5-PUREGL-30.139 | C88: XINNIX X5D32 Afwerkset H 3015 GLAS | D88: 231.5808
B89: X5-XINNIX/D.1 | C89: Afwerkset X5 voor dubbele deuren Xinnix <2400 mm | D89: 61.0674
B90: X5-XINNIX/D.2 | C90: Afwerkset X5 voor dubbele deuren Xinnix 2400-4000 mm | D90: 122.145
B91: X5-XINNIX-23.100/1 | C91: XINNIX X5 Afwerkset H 2315 B 1200 (<1230mm) | D91: 162.9144
B92: X5-XINNIX-23.100/2 | C92: XINNIX X5 Afwerkset H 2315 B 2400 (1230-2400mm) | D92: 193.5654
B93: X5-XINNIX-23.125/1 | C93: XINNIX X5 Afwerkset H 2315 B 1200 (<1230mm) | D93: 162.9144
B94: X5-XINNIX-23.125/2 | C94: XINNIX X5 Afwerkset H 2315 B 2400 (1230-2400mm) | D94: 193.5654
B95: X5-XINNIXGL-23.100/1 | C95: XINNIX X5 Afwerkset H 2315 B 2400 (1230-2400mm) GLAS | D95: 162.231
B96: X5-XINNIXGL-23.100/2 | C96: XINNIX X5 Afwerkset H 2315 B 2400 (1230-2400mm) GLAS | D96: 193.5552
B97: X5-H100-PURE-23.100/40 | C97: XINNIX X5 HAWA Afwerkset H 2315 muurdikte 100 deurdikte <45 mm | D97: 138.6486
B98: X5-H100-PURE-23.125/40 | C98: XINNIX X5 HAWA Afwerkset H 2315 muurdikte 125 deurdikte <45 mm | D98: 138.6486
B99: X5-H100-PURE-23.125/50 | C99: XINNIX X5 HAWA Afwerkset H 2315 muurdikte 125 deurdikte 45-54 mm | D99: 138.6486
B100: X5-H100-PURE-23.125/60 | C100: XINNIX X5 HAWA Afwerkset H 2315 muurdikte 125 deurdikte 55-60 mm | D100: 138.6486
B101: X5-H100-PURE-27.125/40 | C101: XINNIX X5 HAWA Afwerkset H 2715 muurdikte 125 deurdikte <45 mm | D101: 215.628
B102: X5-H100-PURE-27.125/50 | C102: XINNIX X5 HAWA Afwerkset H 2715 muurdikte 125 deurdikte 45-54 mm | D102: 215.628
B103: X5-H100-PURE-27.125/60 | C103: XINNIX X5 HAWA Afwerkset H 2715 muurdikte 125 deurdikte 55-60 mm | D103: 215.628
B104: X5-H100-PURE-30.125/40 | C104: XINNIX X5 HAWA Afwerkset H 3015 muurdikte 125 deurdikte <45 mm | D104: 231.0096
B105: X5-H100-PURE-30.125/50 | C105: XINNIX X5 HAWA Afwerkset H 3015 muurdikte 125 deurdikte 45-54 mm | D105: 231.0096
B106: X5-H100-PURE-30.125/60 | C106: XINNIX X5 HAWA Afwerkset H 3015 muurdikte 125 deurdikte 55-60 mm | D106: 231.0096
B107: X5-H100-PURE-23.139/40 | C107: XINNIX X5 HAWA Afwerkset H 2315 muurdikte 139 deurdikte <45 mm | D107: 181.305
B108: X5-H100-PURE-27.139/40 | C108: XINNIX X5 HAWA Afwerkset H 2715 muurdikte 139 deurdikte <45 mm | D108: 277.9806
B109: X5-H100-PURE-30.139/40 | C109: XINNIX X5 HAWA Afwerkset H 3015 muurdikte 139 deurdikte <45 mm | D109: 297.2382
B110: X5-H100-PURE-23.150/40 | C110: XINNIX X5 HAWA Afwerkset H 2315 muurdikte 150 deurdikte <45 mm | D110: 167.4432
B111: X5-H100-PURE-23.150/50 | C111: XINNIX X5 HAWA Afwerkset H 2315 muurdikte 150 deurdikte 45-54 mm | D111: 167.4432
B112: X5-H100-PURE-23.150/60 | C112: XINNIX X5 HAWA Afwerkset H 2315 muurdikte 150 deurdikte 55-60 mm | D112: 167.4432
B113: X5-H100-PURE-27.150/40 | C113: XINNIX X5 HAWA Afwerkset H 2715 muurdikte 150 deurdikte <45 mm | D113: 260.4366
B114: X5-H100-PURE-27.150/50 | C114: XINNIX X5 HAWA Afwerkset H 2715 muurdikte 150 deurdikte 45-54 mm | D114: 260.4366
B115: X5-H100-PURE-27.150/60 | C115: XINNIX X5 HAWA Afwerkset H 2715 muurdikte 150 deurdikte 55-60 mm | D115: 260.4366
B116: X5-H100-PURE-30.150/40 | C116: XINNIX X5 HAWA Afwerkset H 3015 muurdikte 150 deurdikte <45 mm | D116: 278.97
B117: X5-H100-PURE-30.150/50 | C117: XINNIX X5 HAWA Afwerkset H 3015 muurdikte 150 deurdikte 45-54 mm | D117: 278.97
B118: X5-H100-PURE-30.150/60 | C118: XINNIX X5 HAWA Afwerkset H 3015 muurdikte 150 deurdikte 55-60 mm | D118: 278.97
B119: X5-H100-PURE-23.164/40 | C119: XINNIX X5 HAWA Afwerkset H 2315 muurdikte 164 deurdikte <45 mm | D119: 181.305
B120: X5-H100-PURE-23.164/50 | C120: XINNIX X5 HAWA Afwerkset H 2315 muurdikte 164 deurdikte 45-54 mm | D120: 181.305
B121: X5-H100-PURE-23.164/60 | C121: XINNIX X5 HAWA Afwerkset H 2315 muurdikte 164 deurdikte 55-60 mm | D121: 181.305
B122: X5-H100-PURE-27.164/40 | C122: XINNIX X5 HAWA Afwerkset H 2715 muurdikte 164 deurdikte <45 mm | D122: 277.9806
B123: X5-H100-PURE-27.164/50 | C123: XINNIX X5 HAWA Afwerkset H 2715 muurdikte 164 deurdikte 45-54 mm | D123: 277.9806
B124: X5-H100-PURE-27.164/60 | C124: XINNIX X5 HAWA Afwerkset H 2715 muurdikte 164 deurdikte 55-60 mm | D124: 277.9806
B125: X5-H100-PURE-30.164/40 | C125: XINNIX X5 HAWA Afwerkset H 3015 muurdikte 164 deurdikte <45 mm | D125: 297.2382
B126: X5-H100-PURE-30.164/50 | C126: XINNIX X5 HAWA Afwerkset H 3015 muurdikte 164 deurdikte 45-54 mm | D126: 297.2382
B127: X5-H100-PURE-30.164/60 | C127: XINNIX X5 HAWA Afwerkset H 3015 muurdikte 164 deurdikte 55-60 mm | D127: 297.2382
B128: X5-H100-PURE-23.175/40 | C128: XINNIX X5 HAWA Afwerkset H 2315 muurdikte 175 deurdikte <45 mm | D128: 181.305
B129: X5-H100-PURE-27.175/40 | C129: XINNIX X5 HAWA Afwerkset H 2715 muurdikte 175 deurdikte <45 mm | D129: 277.9806
B130: X5-H100-PURE-30.175/40 | C130: XINNIX X5 HAWA Afwerkset H 3015 muurdikte 175 deurdikte <45 mm | D130: 297.2382
B131: X5-H100-PURE-23.200/40 | C131: XINNIX X5 HAWA Afwerkset H 2315 muurdikte 200 deurdikte <45 mm | D131: 181.305
B132: X5-H100-PURE-23.200/50 | C132: XINNIX X5 HAWA Afwerkset H 2315 muurdikte 200 deurdikte 45-54 mm | D132: 181.305
B133: X5-H100-PURE-23.200/60 | C133: XINNIX X5 HAWA Afwerkset H 2315 muurdikte 200 deurdikte 55-60 mm | D133: 181.305
B134: X5-H100-PURE-27.200/40 | C134: XINNIX X5 HAWA Afwerkset H 2715 muurdikte 200 deurdikte <45 mm | D134: 277.9806
B135: X5-H100-PURE-27.200/50 | C135: XINNIX X5 HAWA Afwerkset H 2715 muurdikte 200 deurdikte 45-54 mm | D135: 277.9806
B136: X5-H100-PURE-27.200/60 | C136: XINNIX X5 HAWA Afwerkset H 2715 muurdikte 200 deurdikte 55-60 mm | D136: 277.9806
B137: X5-H100-PURE-30.200/40 | C137: XINNIX X5 HAWA Afwerkset H 3015 muurdikte 200 deurdikte <45 mm | D137: 297.2382
B138: X5-H100-PURE-30.200/50 | C138: XINNIX X5 HAWA Afwerkset H 3015 muurdikte 200 deurdikte 45-54 mm | D138: 297.2382
B139: X5-H100-PURE-30.200/60 | C139: XINNIX X5 HAWA Afwerkset H 3015 muurdikte 200 deurdikte 55-60 mm | D139: 297.2382
B140: X5D50-XINNIX-23.175/1 | C140: XINNIX X5D50 Afwerkset H 2315 B 1200 voor dubbele beplating (<1230mm) | D140: 215.9646
B141: X5D50-XINNIX-23.175/2 | C141: XINNIX X5D50 Afwerkset H 2315 B 2400 voor dubbele beplating (1230mm - 2400mm) | D141: 273.2784
B142: X5D50-XINNIX-23.175/3 | C142: XINNIX X5D50 Afwerkset H 2315 B 3600 voor dubbele beplating (2400mm - 3600mm) | D142: 331.6734
B143: X5D50-XINNIX-23.200/1 | C143: XINNIX X5D50 Afwerkset H 2315 B 1200 voor dubbele beplating (<1230mm) | D143: 215.9646
B144: X5D50-XINNIX-23.200/2 | C144: XINNIX X5D50 Afwerkset H 2315 B 2400 voor dubbele beplating (1230mm - 2400mm) | D144: 273.2784
B145: X5D50-XINNIX-23.200/3 | C145: XINNIX X5D50 Afwerkset H 2315 B 3600 voor dubbele beplating (2400mm - 3600mm) | D145: 331.6734
B146: X5D50-XINNIX-27.175/1 | C146: XINNIX X5D50 Afwerkset H 2715 B 1200 voor dubbele beplating (<1230mm) | D146: 304.8576
B147: X5D50-XINNIX-27.175/2 | C147: XINNIX X5D50 Afwerkset H 2715 B 2400 voor dubbele beplating (1230mm - 2400mm) | D147: 398.9016
B148: X5D50-XINNIX-27.175/3 | C148: XINNIX X5D50 Afwerkset H 2715 B 3600 voor dubbele beplating (2400mm - 3600mm) | D148: 492.9354
B149: X5D50-XINNIX-27.200/1 | C149: XINNIX X5D50 Afwerkset H 2715 B 1200 voor dubbele beplating (<1230mm) | D149: 304.8576
B150: X5D50-XINNIX-27.200/2 | C150: XINNIX X5D50 Afwerkset H 2715 B 2400 voor dubbele beplating (1230mm - 2400mm) | D150: 398.9016
B151: X5D50-XINNIX-27.200/3 | C151: XINNIX X5D50 Afwerkset H 2715 B 3600 voor dubbele beplating (2400mm - 3600mm) | D151: 492.9354
B152: X5D50-XINNIX-30.175/1 | C152: XINNIX X5D50 Afwerkset H 3015 B 1200 voor dubbele beplating (<1230mm) | D152: 322.5036
B153: X5D50-XINNIX-30.175/2 | C153: XINNIX X5D50 Afwerkset H 3015 B 2400 voor dubbele beplating (1230mm - 2400mm) | D153: 404.277
B154: X5D50-XINNIX-30.175/3 | C154: XINNIX X5D50 Afwerkset H 3015 B 3600 voor dubbele beplating (2400mm - 3600mm) | D154: 495.0876
B155: X5D50-XINNIX-30.200/1 | C155: XINNIX X5D50 Afwerkset H 3015 B 1200 voor dubbele beplating (<1230mm) | D155: 322.5036
B156: X5D50-XINNIX-30.200/2 | C156: XINNIX X5D50 Afwerkset H 3015 B 2400 voor dubbele beplating (1230mm - 2400mm) | D156: 404.277
B157: X5D50-XINNIX-30.200/3 | C157: XINNIX X5D50 Afwerkset H 3015 B 3600 voor dubbele beplating (2400mm - 3600mm) | D157: 495.0876
B158: X5D50-XINNIX-35.200/1 | C158: XINNIX X5D50 Afwerkset H 3515 B 2400 voor dubbele beplating (<1230mm) | D158: 388.3956
B159: X5D50-XINNIX-35.200/2 | C159: XINNIX X5D50 Afwerkset H 3515 B 2400 voor dubbele beplating (1230mm - 2400mm) | D159: 499.8408
B160: X5D50-XINNIX-35.200/3 | C160: XINNIX X5D50 Afwerkset H 3515 B 2600 voor dubbele beplating (2400mm - 3600 mm) | D160: 612.7752
B161: X5-PURE-23.175 | C161: XINNIX X5D50 Afwerkset H 2315 MS 75 | D161: 277.3788
B162: X5-PURE-27.175 | C162: XINNIX X5D50 Afwerkset H 2715 MS 75 | D162: 350.8494
B163: X5-PURE-30.175 | C163: XINNIX X5D50 Afwerkset H 3015 MS 75 | D163: 365.5884
B164: X5-PURE-35.175 | C164: XINNIX X5D50 Afwerkset H 3515 MS 75 | D164: 385.8354
B165: X5-PURE-23.200 | C165: XINNIX X5D50 Afwerkset H 2315 MS 200 | D165: 277.3788
B166: X5-PURE-27.200 | C166: XINNIX X5D50 Afwerkset H 2715 MS 100 | D166: 350.8494
B167: X5-PURE-30.200 | C167: XINNIX X5D50 Afwerkset H 3015 MS 100 | D167: 365.5884
B168: X5-PURE-35.200 | C168: XINNIX X5D50 Afwerkset H 3515 MS 100 | D168: 385.8354
B169: X5D50-XINNIXGL-23.150/1 | C169: XINNIX X5D50 Afwerkset H 2315 B 1230 MS 50 GLAS | D169: 215.9646
B170: X5D50-XINNIXGL-23.150/2 | C170: XINNIX X5D50 Afwerkset H 2315 B 2400 MS 50 GLAS | D170: 273.2784
B171: X5D50-XINNIXGL-27.150/1 | C171: XINNIX X5D50 Afwerkset H 2715 B 1230 MS 50 GLAS | D171: 304.8576
B172: X5D50-XINNIXGL-27.150/2 | C172: XINNIX X5D50 Afwerkset H 2715 B 2400 MS 50 GLAS | D172: 398.157
B173: X5D50-XINNIXGL-23.175/1 | C173: XINNIX X5D50 Afwerkset H 2315 B 1230 MS 75 GLAS | D173: 215.9646
B174: X5D50-XINNIXGL-23.175/2 | C174: XINNIX X5D50 Afwerkset H 2315 B 2400 MS 75 GLAS | D174: 273.2784
B175: X5D50-XINNIXGL-27.175/1 | C175: XINNIX X5D50 Afwerkset H 2715 B 1230 MS 75 GLAS | D175: 304.8576
B176: X5D50-XINNIXGL-27.175/2 | C176: XINNIX X5D50 Afwerkset H 2715 B 2400 MS 75 GLAS | D176: 398.157
B177: X5D50-XINNIXGL-30.175/1 | C177: XINNIX X5D50 Afwerkset H 3015 B 1230 MS 75 GLAS | D177: 322.5036
B178: X5D50-XINNIXGL-30.175/2 | C178: XINNIX X5D50 Afwerkset H 3015 B 2400 MS 75 GLAS | D178: 416.5374
B179: X5-PUREGL-23.150 | C179: XINNIX X5D50 Afwerkset H 2315 MS 50 GLAS | D179: 159.834
B180: X5-PUREGL-27.150 | C180: XINNIX X5D50 Afwerkset H 2715 MS 50 GLAS | D180: 248.6046
B181: X5-PUREGL-30.150 | C181: XINNIX X5D50 Afwerkset H 3015 MS 50 GLAS | D181: 266.2914
B182: X5-PUREGL-23.175 | C182: XINNIX X5D50 Afwerkset H 2315 MS 75 GLAS | D182: 159.834
B183: X5-PUREGL-27.175 | C183: XINNIX X5D50 Afwerkset H 2715 MS 75 GLAS | D183: 248.6046
B184: X5-PUREGL-30.175 | C184: XINNIX X5D50 Afwerkset H 3015 MS 75 GLAS | D184: 266.2914
B185: X5D50-XINNIX/D.1 | C185: Afwerkset X5D50 voor dubbele beplating voor dubbele deuren (vrije doorgang <2400 mm) | D185: 109.0074
B186: X5D50-XINNIX/D.2 | C186: Afwerkset X5D50 voor dubbele beplating voor dubbele deuren (vrije doorgang 2400-4000 mm) | D186: 218.0454

Sheet GREPEN (hidden)
G1: 12 | Y1: Kies hier uw greep
A2: 10 | B2: XA-3010.I | C2: XINNIX INWERKSCHELP HALVE MAAN INOX 10 MM | D2: 71.5428 | Y2: =VLOOKUP('X5 CALCULATOR'!E21,GREPEN!G25:Z31,2,FALSE) -> 
A3: 12 | B3: XA-3012.I | C3: XINNIX INWERKSCHELP HALVE MAAN INOX 12 MM | D3: 71.5428 | Y3: =VLOOKUP('X5 CALCULATOR'!E21,GREPEN!G25:Z31,3,FALSE) -> 
A4: 35 | B4: XA-3035.I | C4: XINNIX INWERKSCHELP HALVE MAAN INOX 35 MM | D4: 88.1586 | Y4: =VLOOKUP('X5 CALCULATOR'!E21,GREPEN!G25:Z31,4,FALSE) -> 
A5: 40 | B5: XA-3040.W | C5: XINNIX INWERKSCHELP HALVE MAAN WIT 40 MM | D5: 85.5984 | Y5: =VLOOKUP('X5 CALCULATOR'!E21,GREPEN!G25:Z31,5,FALSE) -> 
A6: 40 | B6: XA-3040.B | C6: XINNIX INWERKSCHELP HALVE MAAN ZWART 40 MM | D6: 85.5984 | Y6: =VLOOKUP('X5 CALCULATOR'!E21,GREPEN!G25:Z31,6,FALSE) -> 
A7: 40 | B7: XA-3040.I | C7: XINNIX INWERKSCHELP HALVE MAAN INOX 40 MM | D7: 85.5984 | Y7: =VLOOKUP('X5 CALCULATOR'!E21,GREPEN!G25:Z31,7,FALSE) -> 
A8: 45 | B8: XA-3045 | C8: XINNIX INWERKSCHELP HALVE MAAN INOX 45 MM | D8: 99.6642 | Y8: =VLOOKUP('X5 CALCULATOR'!E21,GREPEN!G25:Z31,8,FALSE) -> 
A9: 50 | B9: XA-3050.I | C9: XINNIX INWERKSCHELP HALVE MAAN INOX 50 MM | D9: 114.9948 | Y9: =VLOOKUP('X5 CALCULATOR'!E21,GREPEN!G25:Z31,9,FALSE) -> 
A10: 60 | B10: XA-3060.I | C10: XINNIX INWERKSCHELP HALVE MAAN INOX 60 MM | D10: 121.3902 | Y10: =VLOOKUP('X5 CALCULATOR'!E21,GREPEN!G25:Z31,10,FALSE) -> 
A11: 40 | B11: XA-3100.I | C11: XINNIX INWERKSLOT INOX ROND | D11: 127.755 | Y11: =VLOOKUP('X5 CALCULATOR'!E21,GREPEN!G25:Z31,11,FALSE) -> 
A12: 40 | B12: XA-3105.I | C12: XINNIX INWERKSLOT INOX | D12: 296.412 | Y12: =VLOOKUP('X5 CALCULATOR'!E21,GREPEN!G25:Z31,12,FALSE) -> 
A13: 40 | B13: XA-3300.I | C13: XINNIX INWERKSLOT WC RECHTHOEK INOX | D13: 141.8208 | Y13: =VLOOKUP('X5 CALCULATOR'!E21,GREPEN!G25:Z31,13,FALSE) -> 
A14: 35 | B14: XA-3335.I | C14: XINNIX INWERKSCHELP RECHTHOEK INOX 35 MM | D14: 85.5984 | Y14: =VLOOKUP('X5 CALCULATOR'!E21,GREPEN!G25:Z31,14,FALSE) -> 
A15: 40 | B15: XA-3340.W | C15: XINNIX INWERKSCHELP RECHTHOEK WIT 40 MM | D15: 86.4144 | Y15: =VLOOKUP('X5 CALCULATOR'!E21,GREPEN!G25:Z31,15,FALSE) -> 
A16: 40 | B16: XA-3340.B | C16: XINNIX INWERKSCHELP RECHTHOEK ZWART 40 MM | D16: 85.5984 | Y16: =VLOOKUP('X5 CALCULATOR'!E21,GREPEN!G25:Z31,16,FALSE) -> 
A17: 40 | B17: XA-3340.I | C17: XINNIX INWERKSCHELP RECHTHOEK INOX 40 MM | D17: 85.5984 | Y17: =VLOOKUP('X5 CALCULATOR'!E21,GREPEN!G25:Z31,17,FALSE) -> 
A18: 45 | B18: XA-3345.I | C18: XINNIX INWERKSCHELP RECHTHOEK INOX 45 MM | D18: 91.9836 | Y18: =VLOOKUP('X5 CALCULATOR'!E21,GREPEN!G25:Z31,18,FALSE) -> 
A19: 50 | B19: XA-3350.W | C19: XINNIX INWERKSCHELP RECHTHOEK WIT 50 MM | D19: 99.6642 | Y19: =VLOOKUP('X5 CALCULATOR'!E21,GREPEN!G25:Z31,19,FALSE) -> 
A20: 50 | B20: XA-3350.B | C20: XINNIX INWERKSCHELP RECHTHOEK ZWART 50 MM | D20: 104.8152 | Y20: =VLOOKUP('X5 CALCULATOR'!E21,GREPEN!G26:AD32,20,FALSE) -> 
A21: 50 | B21: XA-3350.I | C21: XINNIX INWERKSCHELP RECHTHOEK INOX 50 MM | D21: 99.6642 | Y21: =VLOOKUP('X5 CALCULATOR'!E21,GREPEN!G27:AD33,21,FALSE) -> 
A22: 40 | B22: XA-3723.W | C22: XINNIX INWERKSCHELP RECHTHOEK WIT 40 MM - RECHTE HOEKEN | D22: 104.8152 | Y22: =VLOOKUP('X5 CALCULATOR'!E21,GREPEN!G28:AD34,22,FALSE) -> 
A23: 40 | B23: XA-3723.B | C23: XINNIX INWERKSCHELP RECHTHOEK ZWART 40 MM - RECHTE HOEKEN | D23: 85.5984 | Y23: =VLOOKUP('X5 CALCULATOR'!E21,GREPEN!G29:AD35,23,FALSE) -> 
A24: 40 | B24: XA-3723.I | C24: XINNIX INWERKSCHELP RECHTHOEK INOX 40 MM - RECHTE HOEKEN | D24: 85.5984
A25: 50 | B25: XA-3739.B | C25: XINNIX INWERKSCHELP RECHTHOEK INOX 50 MM - RECHTE HOEKEN | D25: 121.3902 | G25: 10 | H25: XA-3010.I | I25: XA-3410.I | J25: XA-3710.B | K25: XA-3710.I
A26: 50 | B26: XA-3739.I | C26: XINNIX INWERKSCHELP RECHTHOEK INOX 50 MM - RECHTE HOEKEN | D26: 121.3902 | G26: 12 | H26: XA-3012.I
A27: 10 | B27: XA-3410.I | C27: XINNIX INWERKSCHELP OPEN HALVE MAAN INOX 10 MM | D27: 74.103 | G27: 35 | H27: XA-3035.I | I27: XA-3335.I | J27: XA-3435.I
A28: 35 | B28: XA-3435.I | C28: XINNIX INWERKSCHELP OPEN HALVE MAAN INOX 35 MM | D28: 94.5336 | G28: 40 | H28: XA-3040.W | I28: XA-3040.B | J28: XA-3040.I | K28: XA-3100.I | L28: XA-3105.I | M28: XA-3300.I | N28: XA-3340.W | O28: XA-3340.B | P28: XA-3340.I | Q28: XA-3723.W | R28: XA-3723.B | S28: XA-3723.I | T28: XA-3440.I | U28: XA-3772.B | V28: XA-3772.I | W28: XA-3703.I | X28: XA-3738.I | Y28: XA-3102.B | Z28: XA-3102.W | AA28: XA-3101.B | AB28: XA-3101.I | AC28: XA-3301.B | AD28: XA-3301.I
A29: 40 | B29: XA-3440.I | C29: XINNIX INWERKSCHELP OPEN HALVE MAAN INOX 40 MM | D29: 99.6642 | G29: 45 | H29: XA-3045 | I29: XA-3345.I | J29: XA-3445.I | K29: XA-3777.I | L29: XA-3704.I | M29: XA-3100.I | N29: XA-3300.I | O29: XA-3101.B | P29: XA-3101.I | Q29: XA-3301.B | R29: XA-3301.I
A30: 45 | B30: XA-3445.I | C30: XINNIX INWERKSCHELP OPEN HALVE MAAN INOX 45 MM | D30: 106.6818 | G30: 50 | H30: XA-3050.I | I30: XA-3350.W | J30: XA-3350.B | K30: XA-3350.I | L30: XA-3739.B | M30: XA-3739.I | N30: XA-3778.W | O30: XA-3778.B | P30: XA-3778.I | Q30: XA-3705.I | R30: XA-3101.B | S30: XA-3101.I | T30: XA-3301.B | U30: XA-3301.I | V30: XA-3100.I | W30: XA-3300.I
A31: 40 | B31: XA-3772.B | C31: Horizontale inbouwgreep met gelaste rechte hoeken | D31: 118.8198 | G31: 60 | H31: XA-3060.I | I31: XA-3100.I | J31: XA-3300.I
A32: 40 | B32: XA-3772.I | C32: Horizontale inbouwgreep met gelaste rechte hoeken | D32: 118.8198
A33: 45 | B33: XA-3777.I | C33: Horizontale inbouwgreep met gelaste rechte hoeken | D33: 118.8198
A34: 50 | B34: XA-3778.W | C34: Horizontale inbouwgreep met gelaste rechte hoeken WIT | D34: 118.8198
A35: 50 | B35: XA-3778.B | C35: Horizontale inbouwgreep met gelaste rechte hoeken ZWART | D35: 118.8198
A36: 50 | B36: XA-3778.I | C36: Horizontale inbouwgreep met gelaste rechte hoeken INOX | D36: 118.8198
A37: 40 | B37: XA-3703.I | C37: XINNIX INWERKSCHELP RECHTHOEK INOX 120x55x40 mm | D37: 121.3902
A38: 43 | B38: XA-3704.I | C38: XINNIX INWERKSCHELP RECHTHOEK INOX 120x55x43 mm | D38: 135.4356
A39: 50 | B39: XA-3705.I | C39: XINNIX INWERKSCHELP RECHTHOEK INOX 120x55x50 mm | D39: 141.6372
A40: 10 | B40: XA-3710.B | C40: XINNIX INWERKSCHELP RECHTHOEK ZWART GLAS 10 mm | D40: 141.8208
A41: 10 | B41: XA-3710.I | C41: XINNIX INWERKSCHELP RECHTHOEK INOX GLAS 10 mm | D41: 141.8208
A42: 40 | B42: XA-3738.I | C42: XINNIX INWERKSCHELP RECHTHOEK INOX | D42: 434.3976
A43: 50 | B43: XA-3101.B | C43: XINNIX INWERKSLOT WC RECHTHOEK ZWART | D43: 127.755
A44: 50 | B44: XA-3101.I | C44: XINNIX INWERKSLOT WC RECHTHOEK INOX | D44: 127.755
A45: 50 | B45: XA-3301.B | C45: XINNIX INWERKSLOT WC RECHTHOEK ZWART | D45: 141.8208
A46: 50 | B46: XA-3301.I | C46: XINNIX INWERKSLOT WC RECHTHOEK INOX | D46: 141.8208
A47: 40 | B47: XA-3102.B | C47: XINNIX INWERKSLOT WC RECHTHOEK ZWART | D47: 127.755
A48: 40 | B48: XA-3102.W | C48: XINNIX INWERKSLOT WC RECHTHOEK WIT | D48: 127.755

Sheet OPMERKINGEN (hidden)
B2: Bij Hp>2315 mm neem dubbele beplating X5D/X5D32
B3: Bij Hp>3015 mm neem dubbele beplating X5D32
B4: Bij Hp>2410 mm WALL met dubbele bepalting X5D/X5D32
B6: Extra set middenstaanders nodig
B7: Bij Hp>2315 mm + MS75 op eigen risico (wij raden MS100 aan)
B9: Schuifdeur voor glas met MD 50 maar tot B 1030
B10: MS 50 enkel bij glas mogelijk
B12: X5 afwerking XINNIX met MS 75 niet hoger dan 2315 mm
B13: X5 afwerking XINNIX met MS 100 niet hoger dan 2315 mm
B14: X5D afwerking XINNIX met MS75/100 en X5D32 met MS75 niet hoger dan 3015 mm
B15: X5 MS75/X5D MS75/X5D MS 100 afwerking PURE niet hoger dan 3015 mm
B16: X5 MS 75/X5D MS 50 niet hoger dan 2315 mm
B17: X5D32 MS 50 niet hoger dan 2715 mm
B18: De combinatie MS 50 en hout is niet mogelijk
B20: Deze hoogte is te hoog en niet mogelijk
B21: Deze breedte is te breed en niet mogelijk
B23: Glazen deur moet altijd met een deur van 10 of 12 mm
B24: Bij een glazen deur met MS50 heb je dubbele beplating nodig
B25: MS 75 + Deurblad>40 mm niet mogelijk!!!
B26: Geen X5 voor glas met MS100 beschikbaar
B27: MS 75 + Wp>1230 mm op eigen risico (wij raden MS 100 aan)
B28: Bij MS50 zit geen softclose
B29: Wp>1030 mm + X5 op eigen risico (wij raden X5D/X5D32 aan)
B32: Een dubbele deur met Hawa heeft geen afwerkset(box 3).
B33: Het is niet mogelijk om een Hawa rail met een glazen deur te combineren!
B34: Neem bij een Xinnix Double Soft Slide MS75!

Sheet INVULVELDEN (hidden)
A2: …
A3: Enkele (<2315) X5
A4: Dubbel X5D
A5: Dubbel X5D32
A6: Dubbel X5D50
A7: … | C7: Xinnix | D7: Hout | E7: Glas
A8: =VLOOKUP('X5 CALCULATOR'!E5,C7:E9,2,FALSE) ->  | C8: Hawa | D8: Hout
A9: =VLOOKUP('X5 CALCULATOR'!E5,C7:E9,3,FALSE) ->  | C9: Xinnix Double Soft Slide | D9: Hout | E9: Glas
A11: …
A12: Enkele
A13: Dubbele
A15: …
A16: Pocket
A17: Wall
A19: …
A20: =VLOOKUP('X5 CALCULATOR'!E5,C20:E22,2,FALSE) ->  | C20: Xinnix | D20: XINNIX | E20: PURE
A21: =VLOOKUP('X5 CALCULATOR'!E5,C20:E22,3,FALSE) ->  | C21: Hawa | D21: PURE
C22: Xinnix Double Soft Slide | D22: XINNIX | E22: PURE
A23: …
A24: =VLOOKUP('X5 CALCULATOR'!E9,A37:G38,2,FALSE) -> 
A25: =VLOOKUP('X5 CALCULATOR'!E9,A37:G38,3,FALSE) -> 
A26: =VLOOKUP('X5 CALCULATOR'!E9,A37:G38,4,FALSE) -> 
A27: =VLOOKUP('X5 CALCULATOR'!E9,A37:G38,5,FALSE) -> 
A28: =VLOOKUP('X5 CALCULATOR'!E9,A37:G38,6,FALSE) -> 
A29: =VLOOKUP('X5 CALCULATOR'!E9,A37:G38,7,FALSE) -> 
A32: …
A33: =VLOOKUP('X5 CALCULATOR'!E9,C33:E34,2,FALSE) ->  | C33: Hout | D33: 75 | E33: 100
A34: =VLOOKUP('X5 CALCULATOR'!E9,C33:E34,3,FALSE) ->  | C34: Glas | D34: 50 | E34: 75
A37: Glas | B37: 10 | C37: 12
A38: Hout | B38: 35 | C38: 40 | D38: 43 | E38: 45 | F38: 50 | G38: 60
A40: …
A41: Glas
A42: Hout
A45: Nee
A46: Parallel
A47: Symmetrie
A50: …
A51: Xinnix
A52: Xinnix Double Soft Slide
A53: Hawa
